Cogmind - Beta 17.1 @@@ ROGUE MODE // 2026.09.04 @ 16:16:20 Player: H3-MLN Result: Destroyed by G-73 Enforcer with Phase Gun Performance ------------- Evolutions (9) 4500 Regions Visited (30) 6000 Robots Destroyed (606) 3030 Value Destroyed (35914) 35914 Prototype IDs (138) 2760 Alien Tech Used (12) 2400 Bonus (45994) 45994 TOTAL SCORE: 100598 Bonus ------- Triggered High Security 1500 High Alert Combat Kills 16772 Follower Combat Kills 3580 Prayed to X0-1V1 5000 Major X0-1V1 Interference 13400 Entered Garrisons 400 Entered DSFs 500 Met Data Miner 300 Acquired ECA 300 Met Zhirov 300 Met Warlord at Base 500 MAIN.C Attacked Warlord 500 Warlord Defense Kills 1252 Scanned by Researcher 500 Met Sigix 2000 Friendly Fire -810 Cogmind --------- Core Integrity 0/1510 Matter 130/150 Energy 290/300 System Corruption 11% Temperature Cool (0) Movement Core (50) Location -1/Access Parts ------- > --- POWER (4) -------- (None) > --- PROPULSION (11) -- Myomer Leg Myomer Leg > --- UTILITY (4) ------ Experimental Optical Array (fused) Self-contained Transmogrifier > --- WEAPON (7) ------- (None) > --- INVENTORY (5) ---- Light Quantum Reactor Experimental Energy Well (600) Null Cannon Hypervelocity Multirail Peak State ------------ > --- POWER ------------ Improved Quantum Reactor Singularity Reactor > --- PROPULSION ------- Advanced Heavy Siege Treads Advanced Heavy Siege Treads High-density Centrium Heavy Treads High-density Centrium Heavy Treads Experimental Biometal Medium Treads Experimental Biometal Medium Treads > --- UTILITY ---------- Huge Storage Unit Experimental Force Field Phase Redirector Self-contained Transmogrifier > --- WEAPON ----------- Cooled Proton Cannon Graviton Cannon Fusion Bomb Launcher Point Singularity Launcher Core Stripper > --- INVENTORY -------- Experimental Energy Well Experimental Matter Compressor Experimental Actuator Array Phase Armor Experimental EM Shield Mapping Drone Bay Dimensional Node Initializer Transdimensional Reconstructor Transdimensional Reconstructor Transdimensional Reconstructor Integrity Redistributor Integrity Redistributor Core Reset Matrix Subatomic Replicator Vortex Rail Enhanced Nova Cannon Null Cannon Hypervelocity Multirail Vortex Catalyst Activator Sigix Terminator Sigix Containment Pod [Rating: 263] Favorites ----------- Power Reinforced Fission Core Engine Heavy Ion Engine Power Core Reinforced Fission Core Reactor Graviton Reactor Propulsion Spiked Medium Treads Treads Spiked Medium Treads Leg Flexi-carbon Leg Wheel High-density Centrium Wheel Hover Unit Improved Antigrav System Flight Unit Xenon Bombardment Thruster Utility Self-contained Transmogrifier Device Self-contained Transmogrifier Storage High-capacity Storage Unit Processor 0b10 Decoder Chip [Generic] Hackware System Mapper Protection Light Regenerative Plating Artifact Phase Redirector Weapon Point Singularity Launcher Energy Gun Force Rifle Energy Cannon Cooled Proton Cannon Ballistic Gun Helical Railgun Ballistic Cannon Magnetic Acceleration Cannon Launcher Point Singularity Launcher Special Weapon Guided Remote Datajack Impact Weapon Shock Maul Slashing Weapon Falx Piercing Weapon Lance Special Melee Weapon Chaos Jack Build | -11 -10 -10 -9 -8 -8 -8 -8 -7 -7 -7 -7 -6 -6 -6 -5 -5 -5 -5 -4 -4 -4 -4 -4 -3 -3 -3 -2 -2 -2 -1 ------- Run | Yrd Mat Min Mat Mat Gar Mat Gar Fac Low Low Dat Pro Fac DSF Fac Upp Upp Zhi Pro Fac Upp Upp War Pro Res Tes Res Qua Sec Acc Slots Evolved 18 | . . . 2 2 . . . 2 . . . . 2 . 2 . . . . 2 . . . . 2 . 2 . . 2 Power 3 | . . . . . . . . . . . . . 1 . . . . . . . . . . . 1 . 1 . . . Propulsion 9 | . . . 2 . . . . 1 . . . . 1 . 2 . . . . 1 . . . . . . 1 . . 1 Utility 1 | . . . . 1 . . . . . . . . . . . . . . . . . . . . . . . . . . Weapon 5 | . . . . 1 . . . 1 . . . . . . . . . . . 1 . . . . 1 . . . . 1 Parts Attached 300 | 8 3 1 2 3 10 . 5 14 4 4 . 2 1 7 22 2 8 2 . 22 3 1 15 2 22 55 20 16 9 37 Power 26 | 2 . . . . 1 . 2 . . . . . . 1 1 1 . . . 2 . . 1 . 4 3 1 1 1 5 Engine 4 | 2 . . . . . . 1 . . . . . . 1 . . . . . . . . . . . . . . . . Core 5 | . . . . . 1 . 1 . . . . . . . 1 . . . . 1 . . . . . 1 . . . . Reactor 17 | . . . . . . . . . . . . . . . . 1 . . . 1 . . 1 . 4 2 1 1 1 5 Propulsion 81 | 2 . 1 2 . 4 . 2 6 . 2 . . 1 3 4 . 1 1 . 9 . 1 2 . 6 14 4 5 . 11 Treads 52 | 2 . 1 2 . 4 . 2 6 . 2 . . 1 3 2 . 1 . . 9 . . 1 . 3 2 4 5 . 2 Leg 17 | . . . . . . . . . . . . . . . 1 . . 1 . . . 1 1 . . 4 . . . 9 Wheel 1 | . . . . . . . . . . . . . . . . . . . . . . . . . . 1 . . . . Hover 8 | . . . . . . . . . . . . . . . 1 . . . . . . . . . . 7 . . . . Flight 3 | . . . . . . . . . . . . . . . . . . . . . . . . . 3 . . . . . Utility 91 | 2 2 . . 1 1 . 1 1 . 2 . 2 . 3 15 . 3 1 . 5 2 . 6 2 6 9 9 7 3 8 Device 55 | 1 1 . . 1 1 . 1 1 . 2 . 2 . 1 7 . 3 . . 5 2 . 4 2 . 4 4 3 3 7 Storage 10 | 1 1 . . . . . . . . . . . . . 1 . . 1 . . . . . . 3 1 1 1 . . Processor 11 | . . . . . . . . . . . . . . 1 . . . . . . . . 2 . . 2 4 2 . . Hackware 11 | . . . . . . . . . . . . . . 1 6 . . . . . . . . . 3 1 . . . . Protection 3 | . . . . . . . . . . . . . . . 1 . . . . . . . . . . 1 . . . 1 Artifact 1 | . . . . . . . . . . . . . . . . . . . . . . . . . . . . 1 . . Weapon 102 | 2 1 . . 2 4 . . 7 4 . . . . . 2 1 4 . . 6 1 . 6 . 6 29 6 3 5 13 Energy Gun 26 | 1 . . . 1 . . . 1 1 . . . . . . . . . . 3 . . 2 . 4 10 . . 2 1 Energy Cannon 20 | . . . . . 2 . . 1 1 . . . . . . 1 1 . . . . . . . 1 6 3 1 1 2 Ballistic Gun 19 | 1 1 . . 1 1 . . 4 . . . . . . . . 1 . . . 1 . 2 . 1 2 2 . . 2 Ballistic Cannon 17 | . . . . . 1 . . . . . . . . . 2 . 2 . . 3 . . 1 . . 2 . 1 2 3 Launcher 5 | . . . . . . . . . 1 . . . . . . . . . . . . . 1 . . 1 . . . 2 Special Weapon 4 | . . . . . . . . . . . . . . . . . . . . . . . . . . 4 . . . . Impact Weapon 3 | . . . . . . . . 1 . . . . . . . . . . . . . . . . . . . 1 . 1 Slashing Weapon 8 | . . . . . . . . . 1 . . . . . . . . . . . . . . . . 4 1 . . 2 Piercing Weapon . | . . . . . . . . . . . . . . . . . . . . . . . . . . . . . . . Special Melee Weapon . | . . . . . . . . . . . . . . . . . . . . . . . . . . . . . . . Unidentified Prototypes 70 | . 1 . . 1 . . . . . 1 . . . 1 1 . . 3 . . . . 11 . 3 23 5 6 6 8 Corrupted Parts 6 | . . . 1 . . . 1 1 . . . . . . . . . . . . . . . . . 2 1 . . . System Corruption 28 | . . . 4 . . . 6 3 . . . . . . . . . . . . . . . . . 10 5 . . . Parts Lost 98 | . . . . . 6 . 2 9 . 1 . . . . 2 . . . . 7 . . . . 9 17 1 . 3 41 Power 16 | . . . . . . . . 1 . . . . . . . . . . . 2 . . . . 3 1 . . . 9 Propulsion 34 | . . . . . 2 . 2 5 . 1 . . . . 2 . . . . 3 . . . . 1 6 . . . 12 Utility 6 | . . . . . . . . 1 . . . . . . . . . . . . . . . . . . . . 2 3 Weapon 42 | . . . . . 4 . . 2 . . . . . . . . . . . 2 . . . . 5 10 1 . 1 17 Highest Loss Streak 11 | . . . . . 2 . 1 4 . 1 . . . . 1 . . . . 7 . . . . 4 7 1 . 1 11 To Critical Strikes 1 | . . . . . . . . . . . . . . . . . . . . . . . . . 1 . . . . . Average Backups 17 | 1 4 8 14 16 16 19 19 17 19 19 20 19 19 19 16 16 15 16 16 15 17 17 16 16 16 15 18 18 19 17 Power . | . 1 1 1 2 2 2 2 1 1 1 1 1 1 . . . . . . . . 1 . 1 . . . . . . Propulsion 1 | 1 1 1 . 1 3 5 5 4 3 2 3 3 2 2 . . . . . . . . . . . . . . . . Utility 8 | . 1 3 4 4 5 6 6 6 7 7 8 7 8 11 11 11 10 11 11 12 14 14 12 10 11 10 9 8 5 5 Weapon 4 | . . 2 7 8 6 6 6 4 6 6 7 7 7 4 4 3 3 3 3 1 . . 1 3 2 3 5 4 6 6 Tool/Special . | . . . . . . . . . . . . . . . . . . . . . . . . . . . . . . . Unused Backups 43 | . 2 . 3 . . . 3 . . 1 . 1 . 5 3 2 2 1 . 2 . . 3 1 . 1 2 4 3 4 Power 1 | . . . . . . . . . . . . . . . . . . . . . . . . . . . . . . 1 Propulsion 9 | . 2 . . . . . 3 . . 1 . 1 . 2 . . . . . . . . . . . . . . . . Utility 21 | . . . 2 . . . . . . . . . . 2 . . 2 1 . 1 . . 3 1 . 1 . 4 1 3 Weapon 10 | . . . 1 . . . . . . . . . . 1 3 2 . . . 1 . . . . . . 1 . 1 . Tool/Special 2 | . . . . . . . . . . . . . . . . . . . . . . . . . . . 1 . 1 . Average Slot Usage (%) 86 | . 98 85 90 99 99 100 100 98 100 99 100 99 93 98 94 92 88 85 83 73 80 88 90 84 74 81 71 67 76 66 Engine 1 | . 14 14 11 9 7 . 6 2 . . . . . 5 . . . . . . . . . . . . . . . . Core 2 | . . . . . 1 9 2 3 7 7 7 7 6 6 7 3 . . 4 4 3 . . . . 3 . . . 1 Reactor 5 | . . . . . . . . . . . . . . . 3 7 11 11 6 4 6 10 6 9 11 8 8 8 13 6 Treads 28 | . 21 16 42 36 35 36 36 37 38 38 35 28 31 34 37 30 33 30 27 24 28 33 39 33 23 15 22 21 25 19 Leg 1 | . 6 11 . . . . . . . . . . . . 1 5 1 . . . . . . 1 . 2 . . . 4 Device 12 | . 19 14 11 18 18 18 13 14 15 14 15 17 18 12 13 16 16 16 16 12 9 15 15 11 7 7 9 5 9 8 Storage 6 | . 8 14 11 9 9 9 9 7 7 7 7 7 6 6 5 5 5 5 5 5 5 5 5 5 5 5 4 4 4 2 Processor 1 | . . . . . . . 4 . . . . . . 2 . . . . . . . . . 3 4 1 1 4 . . Energy Gun 3 | . 12 . . 4 3 . . 1 1 4 . 7 6 6 . . . 5 11 16 12 19 17 2 2 5 . . 1 1 Energy Cannon 2 | . . . . . 2 . 9 7 2 1 . . . . . 2 4 5 1 . . . . . . 4 2 3 2 . Ballistic Gun 1 | . 12 . . 3 5 . . 3 1 . . . . . . . . . . . 1 2 1 10 2 5 . . . 1 Ballistic Cannon 5 | . 1 14 7 . . . . . . . 15 20 18 18 21 19 11 11 2 4 3 . . 5 11 1 2 . 2 6 Launcher 4 | . . . 7 18 1 . . . . . . . . . . . . . 4 1 5 2 . 2 . 4 16 14 10 6 Impact Weapon 4 | . . . . . 13 27 17 16 24 20 6 . . . . . . . . . . . 4 . . . . 2 2 . Peak Build Rating 263 | 7 28 24 33 51 60 53 65 74 71 75 78 83 82 93 121 124 130 130 131 149 144 142 165 168 180 211 239 261 263 251 Average Rating 133 | 5 16 21 30 49 49 52 56 66 67 71 75 79 82 88 109 122 126 128 126 129 138 135 148 162 165 187 225 245 250 189 On Entrance 106 | . 7 19 24 33 51 52 53 65 62 70 75 76 81 82 91 121 124 129 130 125 141 136 142 165 157 162 199 227 259 229 Avg Prop Armor Cover (%) 4 | . 7 6 . . . . . . . . 1 1 1 1 2 2 2 . . . . 2 1 3 8 5 6 5 8 4 Naked Turns . | . . . . . . . . . . . . . . . . . . . . . . . . . . . . . . . Heaviest Build 238 | 15 57 62 62 66 66 58 70 80 80 80 80 81 75 82 117 112 116 94 95 128 121 99 146 146 170 172 238 229 237 224 Greatest Support 420 | 40 40 40 86 85 88 84 107 130 110 127 134 114 131 167 240 229 263 275 275 318 300 289 294 303 310 303 365 420 420 405 Greatest Overweight (x) 5 | . 2 5 . . . . . . . . . . . . . . . . . . . . . . . 2 . . . 1 Average Overweight (x) . | . . 1 . . . . . . . . . . . . . . . . . . . . . . . . . . . . Largest Inventory Capacity 25 | 8 20 20 20 20 20 20 20 20 20 20 20 20 20 20 20 20 20 20 20 20 20 20 20 20 20 20 25 25 25 25 Average Capacity 20 | 6 8 20 20 20 20 20 20 20 20 20 20 20 20 20 20 20 20 20 20 20 20 20 20 20 20 20 24 25 25 23 Most Carried 25 | 3 5 10 16 20 20 19 20 19 20 20 20 20 19 20 20 20 20 20 20 20 20 20 20 20 20 20 25 25 25 25 Average Carried 19 | 1 4 8 14 16 16 19 19 17 19 19 20 19 19 19 19 19 19 20 20 19 19 20 19 19 19 19 23 24 24 22 Final Capacity 25 | 8 20 20 20 20 20 20 20 20 20 20 20 20 20 20 20 20 20 20 20 20 20 20 20 20 20 20 25 25 25 5 Final Carried 25 | 3 5 10 13 20 19 19 20 16 20 20 20 20 19 20 20 20 20 20 20 20 20 20 20 18 20 20 25 25 24 4 Transmogrified Parts 349 | . 4 4 6 . 18 1 16 12 12 13 14 6 . . 17 10 10 2 6 15 11 9 12 13 8 35 35 16 22 22 Integrity Recovered 10415 | . 20 6 58 . 671 8 534 435 468 406 219 128 . . 509 152 198 87 58 473 232 148 537 537 379 1207 562 577 589 1217 Class Distribution -------------------- 29% | Mutant 14% | Tank 8% | Executioner 8% | Derelict-Tank 8% | Generator-Executioner 8% | Gunner 5% | Generator-Bomber 4% | Scavenger-Executioner 3% | Scavenger-Tank Dominant Class ---------------- Mutant | -10/Materials Mutant | -10/Mines Mutant | -9/Materials Gunner | -8/Materials Mutant | -8/Garrison Mutant | -8/Materials Mutant | -8/Garrison Mutant | -7/Factory Mutant | -7/Lower Caves Mutant | -7/Lower Caves Mutant | -7/Data Miner Gunner | -6/Proximity Caves Skirmisher | -6/Factory Gunner | -6/DSF Derelict-Tank | -5/Factory Derelict-Tank | -5/Upper Caves Mutant | -5/Upper Caves Tank | -5/Zhirov Tank | -4/Proximity Caves Tank | -4/Factory Scavenger-Tank | -4/Upper Caves Tank | -4/Upper Caves Commander-Tank | -4/Warlord Derelict-Tank | -3/Proximity Caves Scavenger-Executioner | -3/Research Executioner | -3/Testing Generator-Executioner | -2/Research Tank | -2/Quarantine Generator-Bomber | -2/Section 7 Executioner | -1/Access Resources | -11 -10 -10 -9 -8 -8 -8 -8 -7 -7 -7 -7 -6 -6 -6 -5 -5 -5 -5 -4 -4 -4 -4 -4 -3 -3 -3 -2 -2 -2 -1 ----------- Run | Yrd Mat Min Mat Mat Gar Mat Gar Fac Low Low Dat Pro Fac DSF Fac Upp Upp Zhi Pro Fac Upp Upp War Pro Res Tes Res Qua Sec Acc Matter Collected 26978 | 246 230 119 185 384 827 16 720 206 200 925 . 112 . 170 1899 726 375 157 96 761 188 378 926 284 1442 2386 2548 2913 3040 4519 Remotely 2443 | . . . . . . . . . . . . . . . . . . . . . . . . . . . . . . 2443 Salvage Created 23431 | 68 213 97 220 305 931 26 740 712 508 413 . 85 . 187 1691 337 317 106 60 1541 570 624 514 300 1259 2750 1039 1014 2613 4191 Parts 869 | 7 8 5 20 17 61 . 35 22 18 7 . . . 13 60 17 7 . 5 43 29 27 8 25 36 133 27 19 56 164 Haulers Intercepted 15 | . 2 . . 2 . . . . . 1 . . . . . . . . . 1 . . . . 2 . 2 1 . 4 Recyclers Shooed 12 | 1 . . 1 . . . . . . . . . . . 4 . . . . 2 . . . . 1 . . 1 1 1 Parts Field Recycled . | . . . . . . . . . . . . . . . . . . . . . . . . . . . . . . . Retrieved Matter . | . . . . . . . . . . . . . . . . . . . . . . . . . . . . . . . Parts Self-Destructed 147 | . . . . . . . . . 7 23 . 4 . . . 37 5 . 5 . 29 16 . 21 . . . . . . Prevented 22 | . . . . . . . . . 10 9 . 3 . . . . . . . . . . . . . . . . . . Parts Restored . | . . . . . . . . . . . . . . . . . . . . . . . . . . . . . . . Kills | -11 -10 -10 -9 -8 -8 -8 -8 -7 -7 -7 -7 -6 -6 -6 -5 -5 -5 -5 -4 -4 -4 -4 -4 -3 -3 -3 -2 -2 -2 -1 ------- Run | Yrd Mat Min Mat Mat Gar Mat Gar Fac Low Low Dat Pro Fac DSF Fac Upp Upp Zhi Pro Fac Upp Upp War Pro Res Tes Res Qua Sec Acc Combat Hostiles Destroyed 475 | . 2 3 11 5 22 . 16 16 13 12 . 4 . 5 30 8 7 . 1 21 10 16 9 6 21 42 23 18 45 109 Melee 27 | . . . . . 5 . 3 6 2 1 . . . . . . . . . . . . . . . 8 . 1 1 . Guns 121 | . 2 . . 1 7 . . 2 2 2 . . . 3 . . . . 1 8 6 7 6 2 8 12 1 2 11 38 Cannons 135 | . . 3 6 . 8 . 7 2 . . . 4 . 2 28 8 6 . . 12 . . 1 2 11 10 6 3 7 9 AOE 146 | . . . 5 4 2 . 1 . 3 8 . . . . 2 . 1 . . . 4 8 1 2 2 7 13 10 11 62 Classes Destroyed 31 | 3 3 . 4 2 3 . 1 . . 1 . 1 . 1 1 . . . . . 1 . 1 . 1 2 2 4 . . Worker 38 | 1 . . . 1 . 1 . 2 . . . . . . 5 . . . . . . . . . . 3 1 4 1 19 Builder 28 | . 1 . . 2 . . . . . . . . . . 7 . . . . . . . . . 1 4 . 2 1 10 Tunneler 3 | 1 . . . . . . . . . . . . . . . . . . . 1 . . . . 1 . . . . . Hauler 15 | . 2 . . 2 . . . . . 1 . . . . . . . . . 1 . . . . 2 . 2 1 . 4 Recycler 16 | 1 . . . 1 . . . . . . . . . . 5 . . . . 1 . . . . 1 1 . 4 1 1 Mechanic 13 | . . . . 1 . . . . . . . . . . 3 . . . . . . . . . . . 2 1 2 4 Operator 2 | . . . . . . . . . . . . . . . . . . . . . . . . . 1 1 . . . . Drone 4 | . . . . . . . . . . . . 1 . . . . . . . . . . 1 . . . . . . 2 Watcher 11 | . . . 2 1 . . . . . . . . . . 1 . . . . . . . . . . 2 2 2 1 . Swarmer 58 | . . . 4 . 3 . 2 4 6 1 . 1 . 2 . 4 3 . . 1 4 8 . . 5 . 5 . . 5 Cutter 3 | . . . . . 3 . . . . . . . . . . . . . . . . . . . . . . . . . Saboteur 7 | . . . . . . . . . . . . . . . . . . . . . . . . . . . . 1 . 6 Grunt 189 | . 2 3 4 4 6 . 5 5 4 6 . 1 . 2 17 3 4 . . 8 5 . 5 . 9 19 10 7 17 43 Brawler 16 | . . . 1 . . . . 1 1 2 . . . . 2 . . . . 2 1 . . . . . . 2 1 3 Duelist 15 | . . . . . 3 . . 2 1 1 . . . . 1 . . . . 1 . . . . . . . 1 1 4 Protector 6 | . . . . . . . . . . 1 . . . . . . . . . . . . . . . . . . . 5 Researcher 4 | . . . . . . . . . . . . . . . . . . . . . . . . . . 1 . 2 1 . Sentry 29 | . . . 2 . 4 . 6 2 1 1 . 1 . . 1 1 . . . 2 . 1 . . 2 . 1 . 2 2 Demolisher 1 | . . . . . . . . . . . . . . . . . . . . . . . . . . . 1 . . . Specialist 9 | . . . . . 1 . . . . . . . . . 2 . . . . . . . 1 2 . 1 . . 2 . Hunter 35 | . . . . 1 2 . . 1 . . . . . . . . . . . 2 . 2 1 . 4 . 2 3 7 10 Programmer 60 | . . . . . . . 2 1 . . . . . . 6 . . . 1 5 . 1 . 4 . 20 . 1 5 14 Heavy 3 | . . . . . . . . . . . . . . 1 . . . . . . . . . . 1 . . . 1 . Q-Series 5 | . . . . . . . . . . . . . . . . . . . . . . . . . . . . 1 2 2 Behemoth 3 | . . . . . . . . . . . . . . . . . . . . . . . . . . . 2 . 1 . Investigator 1 | . . . . . . . . . . . . . . . . . . . . . . . . . . . . . . 1 Striker 16 | . . . . . . . . . . . . . . . . . . . . . . . . . . 2 1 . 4 9 Executioner 10 | . . . . . . . . . . . . . . . . . . . . . . . 1 . . . 1 . 2 6 Alpha 7 1 | . . . . . . . . . . . . . . . . . . . . . . . . . . . . 1 . . Fortress 1 | . . . . . . . . . . . . . . . . . . . . . . . . . . . . 1 . . Decomposer 2 | . . . . . . . . . . . . . . . . 2 . . . . . . . . . . . . . . Samaritan 1 | . . . . . . . . . . . . . . . . . . . . . 1 . . . . . . . . . Assembled 1 | . . . . . . . . . . . . . . . 1 . . . . . . . . . . . . . . . Wasp 3 | . . . . . . . . . . . . . . . . . . . . . . 3 . . . . . . . . Thug 2 | . . . . . . . 1 . . . . . . . . . . . . . . 1 . . . . . . . . Savage 1 | . . . . . . . 1 . . . . . . . . . . . . . . . . . . . . . . . Commander 1 | . . . . . . . . . . . . . . . . . 1 . . . . . . . . . . . . . Best Kill Streak 33 | 2 2 1 5 9 6 1 5 4 4 9 . 2 . 4 12 4 7 . 1 4 4 4 4 2 5 13 7 12 7 33 Combat Bots Only 20 | . 1 1 5 4 6 . 5 4 4 9 . 2 . 4 4 4 7 . 1 4 4 4 4 2 5 6 6 9 6 20 Max Kills in Single Turn 15 | 1 1 1 2 5 1 1 2 1 3 3 . 1 . 2 6 2 1 . 1 1 2 4 2 2 2 4 4 6 4 15 Gunslinging 1 | . . . . . . . . . . . . . . . . . . . . . . 1 . . . 1 . . . . Exploded 11 | . . . 2 2 1 . 1 . 3 3 . . . . 1 . 1 . . . 2 4 1 2 1 3 4 4 3 11 Melee 1 | . . . . . 1 . 1 1 1 1 . . . . . . . . . . . . . . . 1 . 1 1 . Uniques/NPCs Destroyed . | . . . . . . . . . . . . . . . . . . . . . . . . . . . . . . . Combat | -11 -10 -10 -9 -8 -8 -8 -8 -7 -7 -7 -7 -6 -6 -6 -5 -5 -5 -5 -4 -4 -4 -4 -4 -3 -3 -3 -2 -2 -2 -1 -------- Run | Yrd Mat Min Mat Mat Gar Mat Gar Fac Low Low Dat Pro Fac DSF Fac Upp Upp Zhi Pro Fac Upp Upp War Pro Res Tes Res Qua Sec Acc Hostile Shots Fired 2942 | . 5 2 36 17 96 . 151 192 23 50 . 24 . 5 229 25 37 . 2 176 23 67 84 42 208 328 82 83 319 636 Missed 782 | . 2 . 11 10 23 . 48 61 7 17 . 10 . 1 65 5 3 . . 29 10 14 18 14 59 84 28 12 71 180 Hits 2160 | . 3 2 25 7 73 . 103 131 16 33 . 14 . 4 164 20 34 . 2 147 13 53 66 28 149 244 54 71 248 456 Melee 92 | . . . . . 10 . . 8 . 6 . . . . 5 14 . . . 1 . . 11 . . . 3 2 11 21 Projectile 2068 | . 3 2 25 7 63 . 103 123 16 27 . 14 . 4 159 6 34 . 2 146 13 53 55 28 149 244 51 69 237 435 AOE 4 | . . . . . 2 . . . . . . . . . . . . . . 1 . . . . . 1 . . . . Critical Strikes 127 | . . . 1 . 5 . 6 7 1 2 . . . . 6 . 2 . . 13 . 2 4 1 8 22 5 5 8 29 Actively Blocked 19 | . . . . . . . . . . . . . . . . . . . . . . . . . . . . . 1 18 Part Disruptions 7 | . . . . . 1 . . 1 . . . . . . . . . . . . . . . . . 4 . . 1 . Damage Taken 45163 | . 35 49 354 141 1584 . 1576 1831 282 971 . 123 . 90 2354 133 295 . 42 3646 446 975 1248 464 2968 5470 1847 2045 4374 11820 Core 3256 | . . 18 10 . 55 . 167 145 34 170 . 19 . . 85 . 26 . . 187 . 78 87 41 126 218 68 80 452 1190 Absorbed by Shields 4055 | . . . . . . . . . . . . . . . 390 . 272 . . . . . 272 . . . 157 . 2891 73 Reduced by Siege Mode 1116 | . . . . . . . . . . . . . . . 31 . 14 . . 569 . . . . 119 23 . 146 71 143 Redirected to Core 266 | . . . . . . . . . . . . . . . . . . . . . . . . . . . . 40 226 . Redirected to Shielding 51 | . . . . . . . . . . . . . . . . . . . . . . . . . . . . . . 51 Ignored by Resistances 2091 | . . . . . . . . . . . . . . . . . . . . . . . . . 508 613 80 . 324 566 Regen/Repaired (Parts) 5692 | . . . . . . . . . . . . . . . 250 . . . . 20 22 . 79 . . . 5 . 1925 3391 Core Remaining (%) 81 | 100 . 82 96 . . . 64 . . . . 85 . 100 . . . . 83 . . . . 93 . 80 . . 30 . Volleys Fired 1084 | 7 15 5 22 11 62 . 55 23 7 28 . 8 . 6 75 14 9 5 1 61 17 28 18 18 67 92 86 61 129 154 Largest 7 | 2 2 1 2 2 3 . 2 2 1 1 . 3 . 4 4 4 4 2 3 5 4 5 4 4 5 7 3 6 5 5 Hottest 460 | 70 70 50 78 78 124 . 180 180 50 65 . 168 . 201 175 161 213 129 154 387 275 235 233 197 300 460 236 395 345 360 Shots Fired 2161 | 14 30 5 27 15 104 . 71 29 10 28 . 19 . 20 236 41 20 10 3 209 47 102 64 34 166 236 101 96 173 251 Gun 925 | 14 30 . . 7 66 . . 20 9 20 . 5 . 6 . . 2 5 3 152 43 100 53 15 55 145 10 5 40 120 Cannon 1049 | . . 5 17 . 33 . 71 9 1 1 . 14 . 14 236 41 18 5 . 57 1 . 11 18 111 81 66 48 107 84 Launcher 181 | . . . 10 8 5 . . . . 7 . . . . . . . . . . 3 2 . 1 . 4 25 43 26 47 Special 6 | . . . . . . . . . . . . . . . . . . . . . . . . . . 6 . . . . Kinetic 1025 | 7 15 5 17 5 54 . . 11 3 . . 14 . 14 236 41 17 . . 57 8 22 33 30 118 126 20 5 46 121 Thermal 622 | 7 5 . . 2 16 . 50 9 1 1 . 5 . 6 . . 1 10 2 152 36 78 16 . 41 62 56 19 11 36 Explosive 165 | . . . 10 8 5 . . . . 7 . . . . . . . . . . 3 2 . 1 . 4 17 43 26 39 Electromagnetic 244 | . 10 . . . 29 . 21 9 6 20 . . . . . . 2 . 1 . . . . . 4 33 8 29 71 1 Slashing 65 | . . . . . . . . . . . . . . . . . . . . . . . . . . . . . 19 46 Entropic 34 | . . . . . . . . . . . . . . . . . . . . . . . 15 3 3 5 . . . 8 Robot Hit Streak 38 | 7 11 2 7 4 13 . 4 8 4 7 . 12 . 11 20 7 12 11 2 38 6 23 25 6 15 26 9 25 11 24 Robot Miss Streak 9 | 1 3 1 2 2 4 . 3 2 1 2 . 3 . 3 8 9 2 . 1 2 3 4 4 3 3 6 4 4 5 4 Penetration Max 3 | . . . . . . . . . . . . . . . 1 . . . . . 1 . 1 . 1 1 2 . 2 3 Secondary Targets 8 | . . . . . . . . . . . . . . . . . . . . . 1 2 2 . . 3 . . . . Max Gunslinging Chain 2 | . . . . . . . . . . . . . . . . . . . . . 1 2 1 . . 1 . . . . Shots Hit Robots 1475 | 12 19 3 15 8 74 1 45 51 19 25 . 15 . 15 154 22 13 9 2 161 27 70 47 13 104 161 39 59 102 190 Core Hits 1118 | 3 10 4 13 23 38 . 10 11 8 41 . 14 . 16 153 23 18 1 2 48 35 36 21 7 41 83 53 45 76 285 Critical Kills 79 | . 1 . . . 1 . . 4 . 1 . . . . 2 1 1 . . 2 3 2 1 1 . 10 2 2 9 36 Critical Parts Destroyed 130 | . . . . . 2 1 5 11 6 1 . . . . 4 1 . . . 5 . 4 2 1 1 17 1 1 12 55 Critical Strikes 281 | . 1 . 3 . 3 1 5 18 6 3 . . . 1 22 2 3 . . 16 3 8 4 2 9 34 7 3 24 103 Burn 5 | . . . . . . . . . . . . . . . . . . . . 1 . 2 1 . 1 . . . . . Meltdown 5 | . . . . . . . . . . . . . . . . . . . . . . . . . . 3 1 1 . . Destroy 181 | . 1 . . . . . . . . . . . . . 6 2 2 . . 7 3 6 1 1 . 24 4 2 21 101 Blast 43 | . . . 3 . . . . . . . . . . 1 16 . . . . 8 . . . . 7 2 2 . 2 2 Corrupt 4 | . . . . . . . . . . 1 . . . . . . 1 . . . . . . . . 1 . . 1 . Smash 35 | . . . . . 3 1 5 18 6 2 . . . . . . . . . . . . . . . . . . . . Sever 3 | . . . . . . . . . . . . . . . . . . . . . . . . . . 3 . . . . Detonate 5 | . . . . . . . . . . . . . . . . . . . . . . . 2 1 1 1 . . . . Melee Attacks 220 | . . . . . 24 2 39 49 20 9 . . . . . . . . . . . . 5 . 1 50 . 3 18 . Kinetic 21 | . . . . . . . . . . . . . . . . . . . . . . . . . . . . 3 18 . Impact 143 | . . . . . 24 2 39 49 15 9 . . . . . . . . . . . . 5 . . . . . . . Slashing 55 | . . . . . . . . . 5 . . . . . . . . . . . . . . . . 50 . . . . Piercing 1 | . . . . . . . . . . . . . . . . . . . . . . . . . 1 . . . . . Sneak Attacks 8 | . . . . . . 1 . 2 . 2 . . . . . . . . . . . . . . 1 2 . . . . Combat Hostiles . | . . . . . . . . . . . . . . . . . . . . . . . . . . . . . . . Follow-up Attacks 25 | . . . . . 1 . 4 9 7 2 . . . . . . . . . . . . . . . 2 . . . . Damage Inflicted 105593 | 156 249 207 1067 1011 2475 136 2236 2164 958 2643 . 418 . 397 6111 572 603 263 58 4734 1068 1730 2478 873 4616 7861 5634 7245 8633 38997 Guns 15392 | 151 249 . . 85 771 . . 156 84 326 . 101 . 120 . . 14 119 58 2951 501 1257 1339 302 1159 2069 286 67 747 2480 Cannons 24680 | . . 204 709 . 419 . 1039 74 . 26 . 317 . 277 5099 532 427 144 . 1679 . . 542 338 3202 2059 1028 1585 2629 2351 Explosions 57561 | . . . 358 926 693 . 171 . 177 1703 . . . . 952 . 162 . . 86 567 473 564 233 227 1879 4226 5467 4621 34076 Melee 7293 | . . . . . 548 136 1026 1934 697 588 . . . . . . . . . . . . 33 . 2 1812 . 38 479 . Ramming 667 | 5 . 3 . . 44 . . . . . . . . . 60 40 . . . 18 . . . . 26 42 94 88 157 90 Kinetic 21584 | 64 83 204 709 52 717 . . 51 24 . . 317 . 277 5099 532 333 . . 1679 59 110 902 519 3368 2099 568 105 1197 2516 Thermal 28225 | 87 13 . . 33 184 . 927 74 177 26 . 101 . 120 409 . 195 263 58 2951 442 1147 944 233 980 1599 746 967 399 15150 Explosive 32210 | . . . 358 926 628 . . . . 1703 . . . . . . . . . 86 567 473 . . . 1595 3375 5467 4581 12451 Electromagnetic 5955 | . 153 . . . 354 . 283 105 60 326 . . . . 543 . 75 . . . . . . . 126 603 851 618 1830 28 Impact 4934 | . . . . . 548 136 1026 1934 669 588 . . . . . . . . . . . . 33 . . . . . . . Slashing 3437 | . . . . . . . . . 28 . . . . . . . . . . . . . . . . 1812 . . 469 1128 Piercing 2 | . . . . . . . . . . . . . . . . . . . . . . . . . 2 . . . . . Entropic 8579 | . . . . . . . . . . . . . . . . . . . . . . . 599 121 114 111 . . . 7634 Highest Corruption 47 | . . . 7 . 21 21 27 4 6 6 . . . . 8 1 . . . 4 4 5 5 3 16 47 5 8 11 11 Average Corruption 9 | . . . 4 . 11 21 22 1 5 6 . . . . 2 1 . . . 3 4 4 5 2 16 22 5 5 8 7 Corruption Purged 4 | . . . . . . . 4 . . . . . . . . . . . . . . . . . . . . . . . Corruption Blocked . | . . . . . . . . . . . . . . . . . . . . . . . . . . . . . . . Effects 538 | . . . 8 . 36 1 76 2 25 3 . . . . 16 . . . . 10 11 17 2 9 33 109 57 39 60 24 Message Errors 122 | . . . 1 . 10 . 19 1 9 . . . . . 3 . . . . 1 3 3 1 3 9 26 8 9 9 7 Matter Fused 126 | . . . 1 . 10 1 13 . 5 1 . . . . 6 . . . . 1 2 5 1 2 8 18 18 7 21 6 Heat Flow Errors 67 | . . . 1 . 6 . 6 . 2 1 . . . . 1 . . . . 1 2 2 . . 4 14 9 7 8 3 Energy Discharges 63 | . . . . . 5 . 8 . 4 1 . . . . 3 . . . . 2 1 2 . . 1 16 5 6 5 4 Parts Rejected 8 | . . . . . . . 1 . . . . . . . . . . . . 1 . . . . 1 1 2 . . 2 Parts Fused 8 | . . . . . . . . . . . . . . . 1 . . . . . . . . 1 1 1 1 1 2 . Data Loss (minor) 55 | . . . 4 . 3 . 15 . . . . . . . 1 . . . . 1 1 1 . 3 3 11 5 4 3 . Data Loss (major) 26 | . . . . . 1 . 5 . 1 . . . . . 1 . . . . 1 . 1 . . 2 4 3 4 2 1 Misfires 27 | . . . . . 1 . 4 1 3 . . . . . . . . . . 1 1 1 . . . 5 3 1 6 . Alerts 11 | . . . 1 . . . 2 . 1 . . . . . . . . . . . 1 1 . . . . 3 . 2 . Misdirections 4 | . . . . . . . . . . . . . . . . . . . . . . . . . . 4 . . . . Weapon Failures 21 | . . . . . . . 3 . . . . . . . . . . . . 1 . 1 . . 4 9 . . 2 1 Overload Shots 39 | . . . . . . . 4 . . . . . . . . . . . . . . . . . . . . 5 30 . Effects 8 | . . . . . . . 1 . . . . . . . . . . . . . . . . . . . . 1 6 . Energy Bleed 3 | . . . . . . . 1 . . . . . . . . . . . . . . . . . . . . . 2 . Heat Surge 5 | . . . . . . . . . . . . . . . . . . . . . . . . . . . . 1 4 . Overflow Damage 7662 | . . 9 55 12 165 136 422 804 329 298 . . . . 205 33 . . . 129 4 9 13 89 235 553 387 761 543 2471 Projectiles 1144 | . . 9 55 . . . 26 . . . . . . . 133 5 . . . 129 . . . 89 209 150 16 120 175 28 Explosions 4114 | . . . . 12 22 . . . . 5 . . . . 72 . . . . . 4 9 . . 26 198 362 641 320 2443 Melee 2404 | . . . . . 143 136 396 804 329 293 . . . . . 28 . . . . . . 13 . . 205 9 . 48 . Knockbacks 150 | . . 1 1 . 2 . 1 4 3 . . . . 4 72 12 3 . . 7 . . 5 . 19 4 . 1 5 6 Impact 13 | . . . . . 2 . 1 4 2 . . . . . 2 . . . . . . . . . 1 . . 1 . . Kinetic 130 | . . 1 1 . . . . . . . . . . 4 68 11 3 . . 6 . . 4 . 18 4 . . 4 6 Secondary 7 | . . . . . . . . . 1 . . . . . 2 1 . . . 1 . . 1 . . . . . 1 . Self-Inflicted Damage 3062 | . . . 52 38 150 . 59 . 47 194 . . . . . . . . . 48 213 34 . 59 . 306 466 145 487 764 Shots 49 | . . . 1 1 4 . 1 . 1 6 . . . . . . . . . 1 7 2 . 1 . 5 5 1 4 9 Rammed 37 | 1 . 2 . . 8 . . . . . . . . . 5 3 . . . 1 . . . . 3 1 5 2 4 2 Targets Rammed 46 | 2 . 2 . . 8 . . . . . . . . . 6 3 . . . 2 . . . . 4 3 5 3 4 4 Kicked . | . . . . . . . . . . . . . . . . . . . . . . . . . . . . . . . Crushed 9 | 1 . . . . . . . . . . . . . . 1 . . . . 1 . . . . 1 2 . 1 . 2 Highest Temperature 506 | 27 68 12 129 51 257 . 300 216 258 235 . 175 . 80 246 39 249 . . 499 388 80 203 76 342 474 332 347 506 392 Average Temperature 92 | 12 25 9 18 18 68 . 102 60 64 61 . 64 . 45 108 20 137 . . 119 83 19 88 49 125 113 44 109 109 123 Received Heat Transfer 5859 | . 18 12 81 36 315 . 333 345 72 234 . 9 . 36 624 9 101 . . 1068 54 72 139 144 213 478 228 108 223 907 Effects 20 | . . . . . . . 2 . . . . . . . 3 . 1 . . 2 1 . . . 2 5 . . 2 2 Shutdowns 2 | . . . . . . . . . . . . . . . . . . . . . 1 . . . . 1 . . . . Energy Bleed 9 | . . . . . . . 2 . . . . . . . . . 1 . . 1 . . . . 1 2 . . 1 1 Interference 8 | . . . . . . . . . . . . . . . 3 . . . . . . . . . 1 2 . . 1 1 Short Circuit 1 | . . . . . . . . . . . . . . . . . . . . 1 . . . . . . . . . . Siege Activations 19 | . . . . . . . . . . . . . . . 3 . 1 . . 2 . . . . 1 2 . 2 4 4 Total Turns 449 | . . . . . . . . . . . . . . . 55 . 8 . . 66 . . . . 34 30 . 21 67 168 Longest Duration 127 | . . . . . . . . . . . . . . . 24 . 8 . . 48 . . . . 34 15 . 15 39 127 Martial Activations . | . . . . . . . . . . . . . . . . . . . . . . . . . . . . . . . Shielding Activations . | . . . . . . . . . . . . . . . . . . . . . . . . . . . . . . . Robots Disrupted 2 | . . . . . . . . . . . . . . . . . . . . . . . . . . 1 1 . . . Combat Hostiles 2 | . . . . . . . . . . . . . . . . . . . . . . . . . . 1 1 . . . Robots Corrupted 40 | . . . . . 2 . 5 6 6 2 . . . . . 1 . . . . . . 1 . 1 2 4 . 10 . Combat Hostiles 33 | . . . . . 1 . 5 6 6 1 . . . . . . . . . . . . 1 . . 2 2 . 9 . Parts Fried 68 | . . . . . 4 2 7 8 6 . . . . . . 1 . . . . . . 1 . 1 12 6 9 11 . Impact Corruptions 69 | . . . . . 5 1 17 23 11 5 . . . . . 3 . . . . . . 1 . . . 2 . 1 . Robots Melted 7 | . . . . . . . . . . . . . . . . . . . . 1 . 1 . . . 3 1 1 . . Combat Hostiles 7 | . . . . . . . . . . . . . . . . . . . . 1 . 1 . . . 3 1 1 . . Parts Melted 45 | . . . . . . . . . . . . 1 . . . . . . . 11 1 13 4 . 1 10 2 . 1 1 Heat Transferred 16554 | 259 37 . . 74 359 . 150 . 100 37 . 225 . 275 250 . 187 398 87 4384 794 2267 1394 50 1297 1316 629 524 296 1165 Parts Sabotaged 2 | . . . . . . . . . . . . . . . . . . . . . . . . . . . . . . 2 Parts Stolen . | . . . . . . . . . . . . . . . . . . . . . . . . . . . . . . . Parts Stripped 95 | . . . . . . . . . . . . . . . . . . . . . . . . . . . . 18 77 . Power Chain Reactions 6 | . . . . . 1 . 1 . 1 . . . . . . . 1 . . . . . . . . 1 . . 1 . Alert | -11 -10 -10 -9 -8 -8 -8 -8 -7 -7 -7 -7 -6 -6 -6 -5 -5 -5 -5 -4 -4 -4 -4 -4 -3 -3 -3 -2 -2 -2 -1 ------- Run | Yrd Mat Min Mat Mat Gar Mat Gar Fac Low Low Dat Pro Fac DSF Fac Upp Upp Zhi Pro Fac Upp Upp War Pro Res Tes Res Qua Sec Acc Maximum Alert Level 5 | . . . 1 1 4 3 5 4 . . . . . 1 4 . . . . 2 . . . . 2 4 5 4 5 5 Low Security (%) 17 | 100 100 100 91 91 2 . . . . . . . 100 64 5 . . . . 32 . . . . 27 10 . . . . Level 1 9 | . . . 8 8 10 . . . . . . . . 35 13 . . . . 41 . . . . 41 22 . . . . Level 2 15 | . . . . . 31 19 8 . . . . . . . 13 . . . . 25 . . . . 30 42 24 . . . Level 3 21 | . . . . . 32 80 42 43 . . . . . . 55 . . . . . . . . . . 22 30 15 13 . Level 4 22 | . . . . . 22 . 21 56 . . . . . . 12 . . . . . . . . . . . 25 84 48 15 Level 5 4 | . . . . . . . 27 . . . . . . . . . . . . . . . . . . . 1 . 11 12 High Security 9 | . . . . . . . . . . . . . . . . . . . . . . . . . . . 17 . 26 72 Max Security . | . . . . . . . . . . . . . . . . . . . . . . . . . . . . . . . Sterilizations 1 | . . . . . . . . . . . . . . 1 . . . . . . . . . . . . . . . . Peak Influence 6321 | 10 30 31 379 204 1440 702 2168 1215 . . . . 70 376 1224 . . . . 616 . . . . 469 1233 1846 1582 2099 6321 Initial 1240 | . 3 . 9 155 126 702 455 1138 . . . . 70 38 197 . . . . . . . . . . 220 693 1100 859 1240 Average 1006 | 1 5 2 82 141 794 699 1197 1118 . . . . 64 185 775 . . . . 279 . . . . 299 540 1119 1372 1478 3420 Influence Increases 23918 | 15 87 82 509 245 1474 8 1813 487 408 475 . 193 5 338 1620 531 166 7 44 1131 230 270 373 140 893 1815 1726 1262 1810 5761 Destroy 0b10 Robot/C 11560 | . 40 60 220 100 660 . 820 340 300 400 . 140 . 220 680 380 140 . 20 640 200 240 300 120 420 900 560 440 1040 2180 Destroy 0b10 Robot/NC 715 | 15 15 . 10 40 10 5 . 15 . 10 . 10 . . 90 . . 5 . 25 . . 5 . 30 60 45 70 40 215 Destroy Leader 1602 | . 14 20 64 26 30 . 50 80 20 20 . 10 . 30 120 20 . . 10 144 30 30 . 20 84 114 130 56 152 328 Allied During Kill 1430 | . . . . . 110 1 204 12 13 45 . 33 . 86 17 131 26 2 14 59 . . 68 . . 103 143 104 90 169 Successful Hack 143 | . 18 . 33 4 . . 16 16 . . . . 5 . . . . . . . . . . . 14 . . 7 6 24 Disable Machine 1485 | . . . 75 30 15 . 45 . . . . . . . 285 . . . . 135 . . . . 15 285 75 195 180 150 Anti-Garrison Action 1950 | . . . . . 450 . 550 . . . . . . . 200 . . . . . . . . . 200 . 150 . 200 200 Destroy Structure 4072 | . . 2 107 45 169 2 68 9 . . . . . 2 198 . . . . 128 . . . . 100 308 471 390 27 2046 Lose Combat Pursuer 675 | . . . . . 30 . 60 15 75 . . . . . 30 . . . . . . . . . 30 45 30 . 75 285 Miscellaneous 286 | . . . . . . . . . . . . . . . . . . . . . . . . . . . 122 . . 164 Influence Decreases 17659 | 10 92 58 164 419 229 748 345 1478 877 573 610 80 63 17 801 805 390 704 44 532 452 350 493 317 500 975 1113 1642 1269 1509 Entered New Map 8837 | . 2 . 15 214 69 738 245 1030 437 135 610 . 43 17 179 443 176 697 . . 222 72 297 177 . 173 540 808 669 829 Time Decay 6687 | 10 90 58 149 70 . 10 . 318 440 368 . 60 20 . 522 362 214 7 44 382 230 278 136 140 410 632 553 514 490 180 Lost Part 980 | . . . . . 60 . 20 90 . 10 . . . . 20 . . . . 70 . . . . 90 170 10 . 30 410 Lost Ally 720 | . . . . . 100 . 80 40 . 60 . 20 . . 80 . . . . 80 . . 60 . . . 10 20 80 90 Purge Threat 435 | . . . . 135 . . . . . . . . . . . . . . . . . . . . . . . 300 . . Squads Dispatched 128 | . 1 1 2 2 . . . 4 . 1 . . . 2 12 . . . . 7 . . . . 6 10 1 9 28 42 Investigation 15 | . 1 1 1 . . . . 2 . . . . . . 1 . . . . 1 . . . . 2 2 . . 1 3 Extermination 18 | . . . . . . . . 1 . . . . . . 1 . . . . 1 . . . . 2 6 . 3 3 1 Reinforcement 28 | . . . 1 . . . . . . . . . . 2 7 . . . . 1 . . . . 2 2 1 2 5 5 Assault 59 | . . . . . . . . 1 . 1 . . . . 2 . . . . . . . . . . . . 4 19 32 Garrison 8 | . . . . 2 . . . . . . . . . . 1 . . . . 4 . . . . . . . . . 1 Intercept . | . . . . . . . . . . . . . . . . . . . . . . . . . . . . . . . Searches Triggered . | . . . . . . . . . . . . . . . . . . . . . . . . . . . . . . . Data Miner Redirects 3 | . . . . . . . . . . . . . . . . . . . . . . . . . . 1 . . 2 . Construction Impeded 6 | . . . . . . . . . . . . . . . 2 . . . . . . . . . 1 . . . . 3 Haulers Reinforced 4 | . . . . . . . . . . . . . . . 1 . . . . . . . . . . . 1 1 . 1 Active Scanning Responses . | . . . . . . . . . . . . . . . . . . . . . . . . . . . . . . . Cargo Convoy Interrupts 1 | . . . . . . . . . . . . . . . 1 . . . . . . . . . . . . . . . Stealth | -11 -10 -10 -9 -8 -8 -8 -8 -7 -7 -7 -7 -6 -6 -6 -5 -5 -5 -5 -4 -4 -4 -4 -4 -3 -3 -3 -2 -2 -2 -1 --------- Run | Yrd Mat Min Mat Mat Gar Mat Gar Fac Low Low Dat Pro Fac DSF Fac Upp Upp Zhi Pro Fac Upp Upp War Pro Res Tes Res Qua Sec Acc Distress Signals 31 | . . . . 1 . . . . . . . . . . 2 . . . . 1 . . . . 2 3 8 4 7 3 Communications Jammed . | . . . . . . . . . . . . . . . . . . . . . . . . . . . . . . . Distress Signals . | . . . . . . . . . . . . . . . . . . . . . . . . . . . . . . . Times Spotted 780 | . 2 3 14 10 32 . 38 18 18 22 . 8 . 8 44 19 7 . 1 38 10 16 33 6 26 63 43 32 72 197 Peak Tracking Total 16 | . 1 1 4 6 4 . 7 5 7 12 . 4 . 3 5 7 7 . 1 5 4 4 11 2 5 6 7 6 11 16 Tactical Retreats 25 | . . . . . 2 . 2 1 2 . . . . . 3 . . . . . . . . . 1 1 1 . 5 7 Traps | -11 -10 -10 -9 -8 -8 -8 -8 -7 -7 -7 -7 -6 -6 -6 -5 -5 -5 -5 -4 -4 -4 -4 -4 -3 -3 -3 -2 -2 -2 -1 ------- Run | Yrd Mat Min Mat Mat Gar Mat Gar Fac Low Low Dat Pro Fac DSF Fac Upp Upp Zhi Pro Fac Upp Upp War Pro Res Tes Res Qua Sec Acc Traps Triggered 14 | . 1 1 1 . 2 . 3 . . . . . . . 1 . . . . 2 . . . . . 1 . 2 . . Indirectly 1 | . . . . . . . . . . . . . . . 1 . . . . . . . . . . . . . . . Trap Hack Attempts . | . . . . . . . . . . . . . . . . . . . . . . . . . . . . . . . Triggered . | . . . . . . . . . . . . . . . . . . . . . . . . . . . . . . . Disarmed . | . . . . . . . . . . . . . . . . . . . . . . . . . . . . . . . Reprogrammed . | . . . . . . . . . . . . . . . . . . . . . . . . . . . . . . . Reused . | . . . . . . . . . . . . . . . . . . . . . . . . . . . . . . . Traps Extracted . | . . . . . . . . . . . . . . . . . . . . . . . . . . . . . . . Installed . | . . . . . . . . . . . . . . . . . . . . . . . . . . . . . . . Triggered . | . . . . . . . . . . . . . . . . . . . . . . . . . . . . . . . Machines | -11 -10 -10 -9 -8 -8 -8 -8 -7 -7 -7 -7 -6 -6 -6 -5 -5 -5 -5 -4 -4 -4 -4 -4 -3 -3 -3 -2 -2 -2 -1 ---------- Run | Yrd Mat Min Mat Mat Gar Mat Gar Fac Low Low Dat Pro Fac DSF Fac Upp Upp Zhi Pro Fac Upp Upp War Pro Res Tes Res Qua Sec Acc Machines Disabled 125 | . . . 5 2 9 . 11 . . . . . . . 19 2 1 . . 9 . . . . 1 19 6 13 18 10 Max in Single Turn 6 | . . . 2 1 2 . 1 . . . . . . . 5 1 1 . . 2 . . . . 1 3 1 1 3 6 Garrison Access 10 | . . . . . . . . . . . . . . . 1 . . . . 2 . . . . 1 . 4 . 1 1 Garrison Relay 12 | . . . . . 5 . 7 . . . . . . . . . . . . . . . . . . . . . . . Phase Generator 2 | . . . . . 1 . 1 . . . . . . . . . . . . . . . . . . . . . . . Energy Cycler 1 | . . . . . . . . . . . . . . . . . . . . . . . . . . . . . . 1 Machines Repaired . | . . . . . . . . . . . . . . . . . . . . . . . . . . . . . . . Machines Dismantled . | . . . . . . . . . . . . . . . . . . . . . . . . . . . . . . . Machines Sabotaged . | . . . . . . . . . . . . . . . . . . . . . . . . . . . . . . . Overloaded Fab Kills . | . . . . . . . . . . . . . . . . . . . . . . . . . . . . . . . Hacking | -11 -10 -10 -9 -8 -8 -8 -8 -7 -7 -7 -7 -6 -6 -6 -5 -5 -5 -5 -4 -4 -4 -4 -4 -3 -3 -3 -2 -2 -2 -1 --------- Run | Yrd Mat Min Mat Mat Gar Mat Gar Fac Low Low Dat Pro Fac DSF Fac Upp Upp Zhi Pro Fac Upp Upp War Pro Res Tes Res Qua Sec Acc Machines Accessed 63 | . 2 1 6 2 1 2 4 3 1 . 4 . 1 . 4 . 4 4 . 4 . . 1 . 4 2 . 6 4 3 Terminals 30 | . 2 . 5 1 1 1 4 1 . . . . 1 . . . 1 . . 1 . . . . 1 2 . 6 2 1 Fabricators 3 | . . . . . . . . 1 . . . . . . 1 . . . . . . . . . 1 . . . . . Repair Stations 2 | . . . . . . . . . . . . . . . 1 . . . . . . . . . 1 . . . . . Recycling Units 1 | . . . . . . . . . . . . . . . 1 . . . . . . . . . . . . . . . Scanalyzers 4 | . . . 1 . . . . . . . . . . . . . . . . 1 . . . . . . . . 1 1 Garrison Access 9 | . . . . 1 . 1 . 1 . . . . . . 1 . . . . 2 . . . . 1 . . . 1 1 Total Hacks 192 | . 9 1 21 4 5 3 7 10 1 . 30 . 1 . 18 . 12 17 . 6 . . 1 . 12 5 . 14 8 7 Successful 121 | . 5 1 9 2 1 1 2 3 1 . 30 . 1 . 13 . 12 17 . 3 . . 1 . 8 . . 4 5 2 Failed 70 | . 3 . 12 2 4 2 5 7 . . . . . . 5 . . . . 3 . . . . 4 5 . 10 3 5 Catastrophic 16 | . . . 1 . 1 . 3 4 . . . . . . 1 . . . . 1 . . . . 1 2 . 2 . . Database Lockouts 1 | . 1 . . . . . . . . . . . . . . . . . . . . . . . . . . . . . Manual 47 | . 8 . 16 2 . . . 5 . . . . . . 3 . . . . . . . 1 1 2 3 . 3 2 1 Terminals 84 | . 9 . 18 3 5 2 7 5 . . . . 1 . . . 5 . . 2 . . . . 3 5 . 14 2 3 Fabricators 21 | . . . . . . . . 3 . . . . . . 11 . . . . . . . . . 7 . . . . . Repair Stations 3 | . . . . . . . . . . . . . . . 2 . . . . . . . . . 1 . . . . . Recycling Units 2 | . . . . . . . . . . . . . . . 2 . . . . . . . . . . . . . . . Scanalyzers 11 | . . . 3 . . . . . . . . . . . . . . . . 1 . . . . . . . . 4 3 Garrison Access 14 | . . . . 1 . 1 . 2 . . . . . . 3 . . . . 3 . . . . 1 . . . 2 1 Terminal Hacks 81 | . 2 1 1 1 1 . 2 3 1 . 30 . 1 . . . 12 17 . 1 . . 1 . 1 . . 4 2 . Record 27 | . . . . . . . . . . . 11 . . . . . 10 5 . . . . . . . . . 1 . . Part Schematic 15 | . 1 . . . . . . . . . 10 . . . . . . 4 . . . . . . . . . . . . Robot Schematic 6 | . . . . . . . . . . . 6 . . . . . . . . . . . . . . . . . . . Robot Analysis 5 | . 1 . . . . . . . . . . . . . . . . 4 . . . . . . . . . . . . Prototype ID Bank 7 | . . . . . . . . . . . 3 . . . . . . 4 . . . . . . . . . . . . Open Door 9 | . . 1 . . 1 . . . 1 . . . . . . . 2 . . . . . 1 . . . . 1 2 . Open DSF 1 | . . . . . . . . . . . . . 1 . . . . . . . . . . . . . . . . . Level Access Points 1 | . . . . . . . . . . . . . . . . . . . . 1 . . . . . . . . . . Branch Access Points 1 | . . . . . . . . 1 . . . . . . . . . . . . . . . . . . . . . . Unreport Threat 3 | . . . . 1 . . . . . . . . . . . . . . . . . . . . . . . 2 . . Locate Traps 2 | . . . . . . . . 1 . . . . . . . . . . . . . . . . 1 . . . . . Hauler Manifests 1 | . . . . . . . . 1 . . . . . . . . . . . . . . . . . . . . . . Zone Layout 1 | . . . 1 . . . . . . . . . . . . . . . . . . . . . . . . . . . Garrison Registry 1 | . . . . . . . 1 . . . . . . . . . . . . . . . . . . . . . . . Patrol Navigation 1 | . . . . . . . 1 . . . . . . . . . . . . . . . . . . . . . . . Fabricator Hacks 16 | . . . . . . . . . . . . . . . 10 . . . . . . . . . 6 . . . . . Load Schematic 8 | . . . . . . . . . . . . . . . 5 . . . . . . . . . 3 . . . . . Build 8 | . . . . . . . . . . . . . . . 5 . . . . . . . . . 3 . . . . . Repair Station Hacks 2 | . . . . . . . . . . . . . . . 2 . . . . . . . . . . . . . . . Scan Component 1 | . . . . . . . . . . . . . . . 1 . . . . . . . . . . . . . . . Repair 1 | . . . . . . . . . . . . . . . 1 . . . . . . . . . . . . . . . Recycling Unit Hacks . | . . . . . . . . . . . . . . . . . . . . . . . . . . . . . . . Scanalyzer 5 | . . . 2 . . . . . . . . . . . . . . . . . . . . . . . . . 2 1 Insert Component 1 | . . . . . . . . . . . . . . . . . . . . . . . . . . . . . 1 . Retrieve Study 4 | . . . 2 . . . . . . . . . . . . . . . . . . . . . . . . . 1 1 Garrison Access Hacks 4 | . . . . 1 . 1 . . . . . . . . . . . . . 2 . . . . . . . . . . Unlock Access 2 | . . . . 1 . 1 . . . . . . . . . . . . . . . . . . . . . . . . Seal Access 2 | . . . . . . . . . . . . . . . . . . . . 2 . . . . . . . . . . Unauthorized Hacks 13 | . 3 . 6 . . . . . . . . . . . 1 . . . . . . . . . 1 . . . 1 1 Terminals 9 | . 3 . 6 . . . . . . . . . . . . . . . . . . . . . . . . . . . Botnet 3 | . 1 . 2 . . . . . . . . . . . . . . . . . . . . . . . . . . . Operators 2 | . 1 . 1 . . . . . . . . . . . . . . . . . . . . . . . . . . . Skim 4 | . 1 . 3 . . . . . . . . . . . . . . . . . . . . . . . . . . . Fabricators . | . . . . . . . . . . . . . . . . . . . . . . . . . . . . . . . Repair Stations . | . . . . . . . . . . . . . . . . . . . . . . . . . . . . . . . Recycling Units . | . . . . . . . . . . . . . . . . . . . . . . . . . . . . . . . Scanalyzers . | . . . . . . . . . . . . . . . . . . . . . . . . . . . . . . . Garrison Access 4 | . . . . . . . . . . . . . . . 1 . . . . . . . . . 1 . . . 1 1 Jam 4 | . . . . . . . . . . . . . . . 1 . . . . . . . . . 1 . . . 1 1 Data Cores Recovered 1 | . . . . . . . . . . . . . . . . . . . . . . . . . 1 . . . . . Used . | . . . . . . . . . . . . . . . . . . . . . . . . . . . . . . . Hacking Detections 39 | . 2 . 6 1 1 2 4 3 . . . . . . 3 . . . . 2 . . . . 3 2 . 5 3 2 Full Trace Events 7 | . . . . . 1 . 2 1 . . . . . . . . . . . . . . . . 1 . . . . 2 Feedback Events 1 | . . . . . . . . . . . . . . . . . . . . . . . . . . . . . . 1 Corruption 1 | . . . . . . . . . . . . . . . . . . . . . . . . . . . . . . 1 Feedback Blocked . | . . . . . . . . . . . . . . . . . . . . . . . . . . . . . . . Robot Schematics Acquired 6 | . . . . . . . . . . . 6 . . . . . . . . . . . . . . . . . . . Robots Built . | . . . . . . . . . . . . . . . . . . . . . . . . . . . . . . . Authchips . | . . . . . . . . . . . . . . . . . . . . . . . . . . . . . . . Time . | . . . . . . . . . . . . . . . . . . . . . . . . . . . . . . . Total Robot Build Rating . | . . . . . . . . . . . . . . . . . . . . . . . . . . . . . . . Part Schematics Acquired 16 | . 1 . . . . . . . . . 10 . . . . . . 4 . . . . . . . . . 1 . . Parts Built 8 | . . . . . . . . . . . . . . . 5 . . . . . . . . . 3 . . . . . Authchips 8 | . . . . . . . . . . . . . . . 5 . . . . . . . . . 3 . . . . . Time 598 | . . . . . . . . . . . . . . . 412 . . . . . . . . . 186 . . . . . Total Part Build Rating 50 | . . . . . . . . . . . . . . . 29 . . . . . . . . . 21 . . . . . Part Studies Acquired 4 | . . . 2 . . . . . . . . . . . . . . . . . . . . . . . . . 1 1 Parts Repaired 1 | . . . . . . . . . . . . . . . 1 . . . . . . . . . . . . . . . Time 26 | . . . . . . . . . . . . . . . 26 . . . . . . . . . . . . . . . Parts Recycled . | . . . . . . . . . . . . . . . . . . . . . . . . . . . . . . . Recycled Matter . | . . . . . . . . . . . . . . . . . . . . . . . . . . . . . . . Retrieved Matter . | . . . . . . . . . . . . . . . . . . . . . . . . . . . . . . . Retrieved Components . | . . . . . . . . . . . . . . . . . . . . . . . . . . . . . . . Parts Scanalyzed . | . . . . . . . . . . . . . . . . . . . . . . . . . . . . . . . Part Schematics Acquired . | . . . . . . . . . . . . . . . . . . . . . . . . . . . . . . . Parts Damaged . | . . . . . . . . . . . . . . . . . . . . . . . . . . . . . . . Bothacking | -11 -10 -10 -9 -8 -8 -8 -8 -7 -7 -7 -7 -6 -6 -6 -5 -5 -5 -5 -4 -4 -4 -4 -4 -3 -3 -3 -2 -2 -2 -1 ------------ Run | Yrd Mat Min Mat Mat Gar Mat Gar Fac Low Low Dat Pro Fac DSF Fac Upp Upp Zhi Pro Fac Upp Upp War Pro Res Tes Res Qua Sec Acc Used RIF Installer . | . . . . . . . . . . . . . . . . . . . . . . . . . . . . . . . Robots Hacked 3 | . . . . . . . . . . . . . . . . . . . . . . . . . . 3 . . . . Non-combat 1 | . . . . . . . . . . . . . . . . . . . . . . . . . . 1 . . . . Combat 2 | . . . . . . . . . . . . . . . . . . . . . . . . . . 2 . . . . Robot Hacks Applied 3 | . . . . . . . . . . . . . . . . . . . . . . . . . . 3 . . . . parse_system 2 | . . . . . . . . . . . . . . . . . . . . . . . . . . 2 . . . . check_alert 1 | . . . . . . . . . . . . . . . . . . . . . . . . . . 1 . . . . Relay Couplers Released 55 | . . . . . 23 . 27 . . . . . . . . . . . . . . . . . . . 5 . . . Machine Destruction 55 | . . . . . 23 . 27 . . . . . . . . . . . . . . . . . . . 5 . . . Fabnet Peak Effective % . | . . . . . . . . . . . . . . . . . . . . . . . . . . . . . . . Robots Rewired 24 | . . . . . 6 . 7 . 2 2 . . . . . 1 . . . . . . 5 . . 1 . . . . Allies Hacked 6 | . . . . . . . 4 . . . . . . . 1 . . . . . . . 1 . . . . . . . Hacks Repelled . | . . . . . . . . . . . . . . . . . . . . . . . . . . . . . . . Allies | -11 -10 -10 -9 -8 -8 -8 -8 -7 -7 -7 -7 -6 -6 -6 -5 -5 -5 -5 -4 -4 -4 -4 -4 -3 -3 -3 -2 -2 -2 -1 -------- Run | Yrd Mat Min Mat Mat Gar Mat Gar Fac Low Low Dat Pro Fac DSF Fac Upp Upp Zhi Pro Fac Upp Upp War Pro Res Tes Res Qua Sec Acc Total Allies 44 | . . . . . 9 . 7 . 2 3 . 5 . . . 5 . . . . . . 5 . . 1 . . 5 2 Largest Group 5 | . . . . . 5 4 5 3 2 3 1 4 4 4 4 5 5 5 5 5 . . 5 . . 1 1 1 2 2 Highest-Rated Group 285 | . . . . . 196 180 229 146 40 127 32 164 164 164 163 285 285 285 285 285 . . 246 . . 143 136 136 198 149 Highest-Rated Ally 145 | . . . . . 116 116 116 116 20 79 32 41 41 41 41 64 64 64 64 64 . . 56 . . 143 136 136 145 75 Initial Warlord ECA Mod 31 | . . . . . . 10 10 23 23 23 23 22 22 22 31 31 31 31 30 30 30 30 30 29 29 29 28 28 28 27 Total Orders 36 | . . . . . . . . . . . . . . . . . . . . 15 . . 9 . . 1 3 . . 8 STAY 2 | . . . . . . . . . . . . . . . . . . . . . . . 1 . . . . . . 1 ROAM 2 | . . . . . . . . . . . . . . . . . . . . . . . 1 . . . . . . 1 FOLLOW 3 | . . . . . . . . . . . . . . . . . . . . . . . 3 . . . . . . . GUARD 1 | . . . . . . . . . . . . . . . . . . . . . . . 1 . . . . . . . EXPLORE 10 | . . . . . . . . . . . . . . . . . . . . 2 . . 1 . . . 2 . . 5 RETURN 18 | . . . . . . . . . . . . . . . . . . . . 13 . . 2 . . 1 1 . . 1 Ally Attacks 585 | . . . . . 38 . 70 4 2 19 . 9 . 28 19 39 3 . 2 146 . . 45 . . 19 19 14 64 45 Total Damage 18309 | . . . . . 1588 . 1933 178 63 826 . 244 . 966 652 639 32 . 41 2721 . . 1511 . . 1251 1365 991 2378 930 Kills 120 | . . . . . 11 . 25 2 2 9 . 5 . 6 2 11 . . . 15 . . 9 . . 2 7 2 8 4 Allies Corrupted 2 | . . . . . . . . . . . . . . . 1 . . . . . . . . . . . . 1 . . Allies Melted 2 | . . . . . . . . . . . . . . . . . . . . . . . . . . . 1 . . 1 X0-1V1 Amusement Gains 673 | . 10 35 5 5 64 1 17 16 14 15 . 8 . . 17 12 12 . 11 87 10 11 44 14 35 81 39 44 31 35 Average Entertainment 63 | . 14 19 16 17 51 69 78 98 69 38 . 15 8 8 18 19 16 . 15 71 61 53 50 56 62 76 86 91 85 98 Good Acts 129 | . . . . 1 5 . 4 2 4 8 . 4 . 1 2 8 3 . . . 2 3 2 2 9 18 9 4 21 17 Bad Acts 86 | . . 3 1 . 6 . 5 2 3 . . 1 . . 11 4 2 . 1 9 2 2 3 4 5 . 6 1 8 7 Intel | -11 -10 -10 -9 -8 -8 -8 -8 -7 -7 -7 -7 -6 -6 -6 -5 -5 -5 -5 -4 -4 -4 -4 -4 -3 -3 -3 -2 -2 -2 -1 ------- Run | Yrd Mat Min Mat Mat Gar Mat Gar Fac Low Low Dat Pro Fac DSF Fac Upp Upp Zhi Pro Fac Upp Upp War Pro Res Tes Res Qua Sec Acc Active Infowar (turns) 5059 | 27 170 . . . . . . . . . . 23 40 10 94 . . . . 62 . . 125 555 985 796 959 660 . 553 Optics 1540 | . . . . . . . . . . . . . . . . . . . . . . . . . . . 492 660 . 388 Terrain 885 | . . . . . . . . . . . . 23 40 10 94 . . . . 62 . . 125 . . 531 . . . . Seismic 197 | 27 170 . . . . . . . . . . . . . . . . . . . . . . . . . . . . . Decoding 1665 | . . . . . . . . . . . . . . . . . . . . . . . . 555 985 125 . . . . Cloaking 772 | . . . . . . . . . . . . . . . . . . . . . . . . . . 140 467 . . 165 Jamming 478 | . . . . . . . . . . . . . . . . . . . . . . . . 262 216 . . . . . Robot Analysis Total 5 | . 1 . . . . . . . . . . . . . . . . 4 . . . . . . . . . . . . Derelict Logs Recovered 13 | . . 1 . . . . . . 3 1 . 1 . . . 2 . . 3 . . 2 . . . . . . . . Drone Launches 38 | . . . . . . . . . . . . . . . . . . . . 19 . . 3 . . 2 5 . . 9 Drone Recoveries 28 | . . . . . . . . . . . . . . . . . . . . 17 . . 3 . . 2 4 . . 2 Decoded 0b10 Intel 27 | . . . . . . . . . . . . . . . . . . . . . . . . . 23 4 . . . . Items 19 | . . . . . . . . . . . . . . . . . . . . . . . . . 16 3 . . . . Machines 3 | . . . . . . . . . . . . . . . . . . . . . . . . . 2 1 . . . . Guards 5 | . . . . . . . . . . . . . . . . . . . . . . . . . 5 . . . . . Exploration | -11 -10 -10 -9 -8 -8 -8 -8 -7 -7 -7 -7 -6 -6 -6 -5 -5 -5 -5 -4 -4 -4 -4 -4 -3 -3 -3 -2 -2 -2 -1 ------------- Run | Yrd Mat Min Mat Mat Gar Mat Gar Fac Low Low Dat Pro Fac DSF Fac Upp Upp Zhi Pro Fac Upp Upp War Pro Res Tes Res Qua Sec Acc Turns Passed 27045 | 104 390 958 392 177 1378 36 1645 708 1082 853 1565 507 40 167 1450 828 447 277 346 1034 497 619 1077 768 999 2215 1941 1415 1760 1370 Spaces Moved 12262 | 46 177 304 196 87 628 20 723 311 602 468 100 296 25 73 648 479 249 155 214 427 284 322 524 445 418 888 1081 753 767 552 Core 140 | 6 . . . . . . . . . . . . . . . . . . . . . . . . . . . . . 134 Treads 12120 | 40 177 302 196 87 628 20 723 311 602 468 100 296 25 73 648 479 249 155 214 427 284 322 524 445 418 888 1081 753 767 418 Legs 2 | . . 2 . . . . . . . . . . . . . . . . . . . . . . . . . . . . Wheels . | . . . . . . . . . . . . . . . . . . . . . . . . . . . . . . . Hover . | . . . . . . . . . . . . . . . . . . . . . . . . . . . . . . . Flight . | . . . . . . . . . . . . . . . . . . . . . . . . . . . . . . . Fastest Speed 50 | 50 160 245 158 158 158 155 152 157 159 156 160 160 162 161 160 157 160 160 160 149 149 158 158 157 150 148 148 150 144 50 Average Speed 162 | 145 178 306 162 158 161 155 158 158 160 160 161 161 162 161 160 159 160 160 160 159 153 159 160 160 154 184 154 157 151 128 Slowest Speed 470 | 160 320 470 165 158 165 158 162 160 164 162 162 162 162 162 161 160 160 160 160 170 158 161 165 166 159 330 160 164 155 215 Overloaded Moves . | . . . . . . . . . . . . . . . . . . . . . . . . . . . . . . . Propulsion Burnouts . | . . . . . . . . . . . . . . . . . . . . . . . . . . . . . . . Robots Hopped . | . . . . . . . . . . . . . . . . . . . . . . . . . . . . . . . Potential Cave-ins . | . . . . . . . . . . . . . . . . . . . . . . . . . . . . . . . Cave-ins Triggered . | . . . . . . . . . . . . . . . . . . . . . . . . . . . . . . . Teleports 3 | . . . . . . . . . . . . . . . . . . . . . . . . . . . . . 1 2 Exploration Rate (%) 49 | 4 31 66 26 12 74 4 89 9 80 64 68 61 2 82 12 71 48 61 52 15 53 57 95 71 11 91 50 82 58 25 Regions Visited 30 Branch Regions 16 Pre-discovered Areas 8 | . . . . . . . . . 1 1 1 . . . . 1 1 3 . . . . . . . . . . . . Known Exits Taken 16 | . . . . 1 . 1 . 1 1 1 . 1 1 . . 1 1 . 1 . 1 . . 1 1 1 1 . 1 . Unknown Exits Taken 11 | 1 1 1 1 . . . . . . . 1 . . . 1 . . 1 . 1 . 1 1 . . . . 1 . . Scrap Searched 24 | . . 2 . . . . . . 8 3 . . . . . 3 1 . 1 . . 2 . 4 . . . . . . Spaces Dug 61 | . . . . . 1 . 12 4 . 1 . . . . 4 . . . . . . . 2 5 6 10 11 2 . 3 Terrain Destroyed 2422 | . . 2 124 70 110 . 32 6 4 30 . . . 1 114 4 8 . . 31 74 47 61 42 52 153 204 181 35 1037 Melee 15 | . . . . . 1 . 6 . . 1 . . . . . . . . . . . . 2 . . 4 . 1 . . Projectile 309 | . . 2 4 . . . 19 6 . . . . . 1 50 4 3 . . 19 2 2 42 24 44 32 23 2 2 28 AOE 2086 | . . . 120 70 109 . 7 . 4 29 . . . . 64 . 5 . . 12 72 45 17 18 8 116 181 178 30 1001 Terrain Rammed . | . . . . . . . . . . . . . . . . . . . . . . . . . . . . . . . Walls Destroyed . | . . . . . . . . . . . . . . . . . . . . . . . . . . . . . . . Machines Disabled . | . . . . . . . . . . . . . . . . . . . . . . . . . . . . . . . Actions | -11 -10 -10 -9 -8 -8 -8 -8 -7 -7 -7 -7 -6 -6 -6 -5 -5 -5 -5 -4 -4 -4 -4 -4 -3 -3 -3 -2 -2 -2 -1 --------- Run | Yrd Mat Min Mat Mat Gar Mat Gar Fac Low Low Dat Pro Fac DSF Fac Upp Upp Zhi Pro Fac Upp Upp War Pro Res Tes Res Qua Sec Acc Total 17180 | 64 228 318 236 114 865 21 1075 414 686 529 1503 310 25 114 888 511 284 175 215 638 307 361 710 469 636 1194 1250 903 1175 962 Wait 2469 | . 24 1 5 2 58 . 143 18 31 6 1404 2 . 4 109 . 7 . 1 95 1 9 62 1 100 37 4 26 196 123 Move 12235 | 46 176 303 195 87 627 20 722 310 601 467 99 295 24 72 647 478 248 154 213 426 283 321 523 444 417 887 1080 752 766 552 Hop . | . . . . . . . . . . . . . . . . . . . . . . . . . . . . . . . Pick Up 186 | 2 5 6 8 9 9 . 6 8 4 6 . 2 . 11 11 5 2 2 . 12 1 . 7 1 7 7 16 13 11 15 Fast Attach 220 | 7 2 . 1 1 . . 2 1 1 2 . . . 3 6 1 7 6 . 13 1 2 14 . 15 59 20 10 12 34 Attach 107 | . . . 1 2 8 . 2 12 . 2 . 1 1 2 6 1 . . . 8 1 . 1 . 6 7 5 5 8 28 Detach 45 | . . . . 1 . . . . . . . . . . 1 . 1 . . 2 . . 2 . 2 7 2 3 4 20 Swap 111 | 1 1 1 . . 5 . 2 3 3 2 . 1 . 2 17 1 1 1 . 7 1 . 4 4 7 8 8 8 9 14 Drop 234 | . 5 . 4 1 . . 4 1 2 6 . 1 . 14 9 6 9 7 . 12 2 1 22 1 10 40 24 19 18 16 Fire 1084 | 7 15 5 22 11 62 . 55 23 7 28 . 8 . 6 75 14 9 5 1 61 17 28 18 18 67 92 86 61 129 154 Melee 184 | . . . . . 19 1 35 38 11 6 . . . . . . . . . . . . 5 . 1 47 . 3 18 . Ram 2 | . . . . . . . . . . . . . . . 1 . . . . . . . . . . . . . . 1 Kick . | . . . . . . . . . . . . . . . . . . . . . . . . . . . . . . . Crush 44 | 1 . 2 . . 8 . . . . . . . . . 6 3 . . . 2 . . . . 4 3 5 3 4 3 Escape Stasis . | . . . . . . . . . . . . . . . . . . . . . . . . . . . . . . . Rewire 257 | . . . . . 69 . 104 . 26 4 . . . . . 2 . . . . . . 52 . . . . . . . Trap . | . . . . . . . . . . . . . . . . . . . . . . . . . . . . . . . Miscellaneous 2 | . . . . . . . . . . . . . . . . . . . . . . . . . . . . . . 2 Route ------- -11/Scrapyard -10/Materials (discovered 2 exits: *Min / [*Sub]) -10/Mines (discovered 2 exits: *Mat / [*Sub]) -9/Materials -8/Materials -8/Garrison (discovered 2 exits: *Mat x2) -8/Materials -8/Garrison (discovered 3 exits: *Fac x3) -7/Factory (discovered 3 exits: Fac / *Low x2) -7/Lower Caves (discovered 2 exits: *Low / [*Zio]) -7/Lower Caves (discovered 2 exits: *Fac / *Dat) -7/Data Miner -6/Proximity Caves -6/Factory (discovered 3 exits: Low / Ext / DSF) -6/DSF -5/Factory -5/Upper Caves -5/Upper Caves (discovered 2 exits: Fac / *Zhi) -5/Zhirov -4/Proximity Caves -4/Factory (discovered 5 exits: Res x4 / [*Upp]) -4/Upper Caves -4/Upper Caves -4/Warlord -3/Proximity Caves -3/Research (discovered 4 exits: Res x2 / *Tes x2) -3/Testing -2/Research (discovered 4 exits: *Acc x3 / *Qua) -2/Quarantine (discovered 2 exits: *Sec / [*Frg]) -2/Section 7 -1/Access (discovered 1 exit: Sur) History --------- Turn | Location | Event 6 | -11/Scrapyard | Discovered new exit (range 14) 105 | -11/Scrapyard | Entered Materials 209 | -10/Materials | Central database locked down 270 | -10/Materials | Discovered new exit (range 4) 275 | -10/Materials | Made a sacrifice at D.C.S.S. Altar Unit 275 | -10/Materials | Forcibly received Sfc. Transmogifier from X0-1V1 305 | -10/Materials | Build established: Mutant 394 | -10/Materials | Discovered new exit (range 12) 495 | -10/Materials | Entered Mines 501 | -10/Mines | Met a Derelict bent on vengeance 608 | -10/Mines | Met a Derelict who couldn't figure out how to use a Trap Extractor 739 | -10/Mines | Discovered new exit (range 15) 771 | -10/Mines | Learned Materials terminal intel 1072 | -10/Mines | Discovered new exit (range 11) 1140 | -10/Mines | X0-1V1 vaporized surrounding terrain (radius 15) 1219 | -10/Mines | Assembled infested the area 1224 | -10/Mines | Assisted by a Guerilla fighting off Assembled 1453 | -10/Mines | Entered Materials 1453 | -9/Materials | Evolved 2 slots: Propulsion x2 1454 | -9/Materials | Loaded intel: 11 terminal locations 1820 | -9/Materials | Discovered new exit (range 12) 1845 | -9/Materials | Entered another Materials area 1845 | -8/Materials | Evolved 2 slots: Utility x1, Weapon x1 1915 | -8/Materials | Garrison activated, responded to threat 2022 | -8/Materials | Identified exit to Garrison 2022 | -8/Materials | Entered Garrison 2052 | -8/Garrison | Triggered checkpoint 2076 | -8/Garrison | Garrison Relay disabled 2108 | -8/Garrison | Garrison Relay disabled 2155 | -8/Garrison | Build established: Gunner 2162 | -8/Garrison | Triggered checkpoint 2212 | -8/Garrison | Garrison Relay disabled 2448 | -8/Garrison | X0-1V1 activates XOMVISION 2466 | -8/Garrison | Triggered checkpoint 2502 | -8/Garrison | Lost 4 allies 2563 | -8/Garrison | Discovered new exit (range 12) 2612 | -8/Garrison | X0-1V1 sent allied B-86 Titan (x1) 2643 | -8/Garrison | Phase Generator disabled 2759 | -8/Garrison | Build established: Mutant 2784 | -8/Garrison | Rescued a captive Derelict 2792 | -8/Garrison | Rescued a captive Derelict 2843 | -8/Garrison | System corruption reached 10% 2934 | -8/Garrison | Triggered checkpoint 2951 | -8/Garrison | Garrison Relay disabled 3054 | -8/Garrison | Triggered checkpoint 3082 | -8/Garrison | Triggered checkpoint 3154 | -8/Garrison | Triggered checkpoint 3183 | -8/Garrison | Garrison Relay disabled 3314 | -8/Garrison | Triggered checkpoint 3376 | -8/Garrison | Discovered new exit (range 11) 3400 | -8/Garrison | Entered Materials 3400 | -8/Materials | Accompanied by 4 allies 3436 | -8/Materials | Identified exit to Garrison 3436 | -8/Materials | Entered Garrison 3436 | -8/Garrison | Accompanied by 4 allies 3500 | -8/Garrison | Triggered checkpoint 3518 | -8/Garrison | Garrison Relay disabled 3634 | -8/Garrison | X0-1V1 destroyed Phase Generator 3634 | -8/Garrison | Phase Generator disabled 3940 | -8/Garrison | Build established: Commander-Mutant 4066 | -8/Garrison | P-60 Hacker assimilated allied 6E-62X(g) 4097 | -8/Garrison | P-60 Hacker assimilated allied 5O-OQT(g) 4131 | -8/Garrison | Identified exit to Factory 4131 | -8/Garrison | X0-1V1 revealed exit location to -7/Factory 4190 | -8/Garrison | Discovered exit to Factory (range 14) 4218 | -8/Garrison | Triggered checkpoint 4284 | -8/Garrison | Garrison Relay disabled 4340 | -8/Garrison | Triggered checkpoint 4358 | -8/Garrison | Build established: Mutant 4362 | -8/Garrison | X0-1V1 vaporized surrounding terrain (radius 18) 4365 | -8/Garrison | Triggered checkpoint 4370 | -8/Garrison | Triggered checkpoint 4416 | -8/Garrison | Garrison Relay disabled 4449 | -8/Garrison | Discovered exit to Factory (range 11) 4500 | -8/Garrison | Triggered checkpoint 4523 | -8/Garrison | Garrison Relay disabled 4524 | -8/Garrison | Triggered checkpoint 4687 | -8/Garrison | Discovered exit to Factory (range 80) 4687 | -8/Garrison | Discovered exit to Factory (range 46) 4687 | -8/Garrison | Discovered exit to Factory (range 24) 4729 | -8/Garrison | P-60 Hacker assimilated allied Defender 3b 4738 | -8/Garrison | Core integrity fell below 50% 4774 | -8/Garrison | Core integrity restored by X0-1V1 (+80) 4838 | -8/Garrison | Triggered checkpoint 4901 | -8/Garrison | Garrison Relay disabled 4932 | -8/Garrison | Triggered checkpoint 4963 | -8/Garrison | Garrison Relay disabled 4995 | -8/Garrison | Garrison Relay disabled 5081 | -8/Garrison | Entered Factory 5081 | -7/Factory | Accompanied by 3 allies 5081 | -7/Factory | Evolved 2 slots: Propulsion x1, Weapon x1 5102 | -7/Factory | Identified exit to Factory 5102 | -7/Factory | X0-1V1 revealed exit location to -6/Factory 5280 | -7/Factory | Identified exit to Lower Caves 5481 | -7/Factory | First assault squad dispatched 5656 | -7/Factory | Lost 4 parts (1p1n1u1w) 5789 | -7/Factory | Entered Lower Caves 5810 | -7/Lower Caves | Met a Warlord Commander 5811 | -7/Lower Caves | Learned location of Warlord (-4) 5812 | -7/Lower Caves | Warlord Commander delivered Encrypted Comm Array 5816 | -7/Lower Caves | Found Encrypted Comm Array 5933 | -7/Lower Caves | X0-1V1 caused items to flee you 5954 | -7/Lower Caves | Attracted the attention of an 0b10 outpost 6012 | -7/Lower Caves | Energy capacity permanently improved by X0-1V1 (+200; -100 max core) 6090 | -7/Lower Caves | Items stopped fleeing you 6162 | -7/Lower Caves | Identified exit to Lower Caves 6215 | -7/Lower Caves | A Derelict revealed a hidden shortcut to a safe place 6335 | -7/Lower Caves | Learned 12 Factory zone layouts 6871 | -7/Lower Caves | Entered another Lower Caves area 6871 | -7/Lower Caves | Accompanied by 2 allies 7022 | -7/Lower Caves | Discovered exit to Factory (range 7) 7029 | -7/Lower Caves | Identified exit to Data Miner 7029 | -7/Lower Caves | X0-1V1 revealed exit location to -7/Data Miner 7059 | -7/Lower Caves | Attracted the attention of an 0b10 outpost 7078 | -7/Lower Caves | X0-1V1 sent allied Knight (x1) 7115 | -7/Lower Caves | Destroyed 9 combat bots 7128 | -7/Lower Caves | Core integrity restored by X0-1V1 (+130) 7137 | -7/Lower Caves | Ranged accuracy permanently improved by X0-1V1 (+9%; -90 max core) 7328 | -7/Lower Caves | X0-1V1 activates XOMVISION 7724 | -7/Lower Caves | Entered Data Miner 7724 | -7/Data Miner | Accompanied by 1 ally 7724 | -7/Data Miner | Discovered new exit (range 6) 7755 | -7/Data Miner | Met Data Miner 7786 | -7/Data Miner | Learned location of Section 7 (-2) 7786 | -7/Data Miner | Acquired the access code to Warlord's prototype stash 7807 | -7/Data Miner | Received God Mode back door access code from Data Miner 9135 | -7/Data Miner | Build established: Gunner 9289 | -7/Data Miner | Entered Proximity Caves 9289 | -6/Proximity Caves | Accompanied by 1 ally 9299 | -6/Proximity Caves | X0-1V1 activates XOMVISION 9479 | -6/Proximity Caves | Utility slot count permanently improved by X0-1V1 (+1) 9537 | -6/Proximity Caves | Attracted the attention of an 0b10 checkpoint 9764 | -6/Proximity Caves | Discovered exit to Factory (range 5) 9773 | -6/Proximity Caves | X0-1V1 sent allied H-66 Slayer (x5) 9788 | -6/Proximity Caves | Learned location of 1 exit from Factory 9796 | -6/Proximity Caves | Entered Factory 9796 | -6/Factory | Accompanied by 4 allies 9796 | -6/Factory | Evolved 2 slots: Power x1, Propulsion x1 9797 | -6/Factory | Identified exit to Extension 9798 | -6/Factory | Identified exit to Lower Caves 9836 | -6/Factory | Identified exit to DSF 9836 | -6/Factory | Entered DSF 9836 | -6/DSF | Accompanied by 4 allies 9874 | -6/DSF | Additional patrols routed to DSF 9970 | -6/DSF | Sterilization system engaged 9977 | -6/DSF | Discovered new exit (range 14) 9990 | -6/DSF | Ambient heat levels rising (+10) 10003 | -6/DSF | Entered Factory 10003 | -5/Factory | Accompanied by 4 allies 10003 | -5/Factory | Evolved 2 slots: Propulsion x2 10009 | -5/Factory | X0-1V1 vaporized surrounding terrain (radius 17) 10052 | -5/Factory | X0-1V1 sent someone to fix up the mess you leave 10059 | -5/Factory | Garrison activated, responded to threat 10109 | -5/Factory | Fabricated Lgt. Regenerative Plating? 10303 | -5/Factory | First assault squad dispatched 10312 | -5/Factory | Fabricated Combat Drone Bay? 10428 | -5/Factory | Fabricated Combat Drone Bay? 10531 | -5/Factory | Fabricated Combat Drone Bay? 10629 | -5/Factory | Fabricated Combat Drone Bay? 10904 | -5/Factory | Build established: Derelict-Tank 10918 | -5/Factory | Discovered new exit (range 11) 11100 | -5/Factory | Repaired Hcp. Storage Unit 11340 | -5/Factory | Cargo convoy interrupted 11453 | -5/Factory | Entered Upper Caves 11495 | -5/Upper Caves | Identified exit to Upper Caves 11495 | -5/Upper Caves | X0-1V1 revealed exit location to -5/Upper Caves 11668 | -5/Upper Caves | Found Alien Artifact 11844 | -5/Upper Caves | Unknown Ballistic Cannon reconfigured into Item Mimic 11850 | -5/Upper Caves | X0-1V1 sent allied Ranger (x4) 11993 | -5/Upper Caves | Attracted the attention of an 0b10 outpost 12001 | -5/Upper Caves | X0-1V1 upgraded hostiles (x1) 12057 | -5/Upper Caves | Attracted the attention of an 0b10 checkpoint 12082 | -5/Upper Caves | Learned location of Armory (-4) 12127 | -5/Upper Caves | X0-1V1 caused items to flee you 12247 | -5/Upper Caves | X0-1V1 vaporized surrounding terrain (radius 15) 12281 | -5/Upper Caves | Entered another Upper Caves area 12281 | -5/Upper Caves | Accompanied by 5 allies 12391 | -5/Upper Caves | X0-1V1 sent you into danger 12393 | -5/Upper Caves | Attracted the attention of an 0b10 base 12423 | -5/Upper Caves | Learned Research trap positions 12423 | -5/Upper Caves | Learned Extension trap positions 12423 | -5/Upper Caves | Learned Research emergency access door positions 12423 | -5/Upper Caves | Learned Armory security intel 12429 | -5/Upper Caves | Identified exit to Factory 12429 | -5/Upper Caves | X0-1V1 revealed exit location to -4/Factory 12431 | -5/Upper Caves | Destroyed 7 combat bots 12567 | -5/Upper Caves | Identified exit to Zhirov 12567 | -5/Upper Caves | X0-1V1 revealed exit location to -5/Zhirov 12574 | -5/Upper Caves | Encountered a Warlord checkpoint 12633 | -5/Upper Caves | Entered an active Warlord outpost 12645 | -5/Upper Caves | Learned Extension trap positions 12645 | -5/Upper Caves | Learned Extension emergency access door positions 12645 | -5/Upper Caves | Learned Armory garrison access intel 12690 | -5/Upper Caves | Destroyed 8M-XUO(g) 12728 | -5/Upper Caves | Entered Zhirov 12728 | -5/Zhirov | Accompanied by 5 allies 12730 | -5/Zhirov | Discovered new exit (range 3) 12759 | -5/Zhirov | Met Zhirov 12788 | -5/Zhirov | Learned location of Testing (-3) 12788 | -5/Zhirov | Learned location of Quarantine (-2) 12788 | -5/Zhirov | Learned location of Command (-1) 12812 | -5/Zhirov | Zhirov requested help retrieving the SGEMP Prototype 12836 | -5/Zhirov | Found Alien Artifact 12836 | -5/Zhirov | Identified Integrated Dissipator 12836 | -5/Zhirov | Installed Integrated Dissipator, increased core heat dissipation (+20) 12943 | -5/Zhirov | Found Alien Artifact 12964 | -5/Zhirov | Build established: Tank 13005 | -5/Zhirov | Entered Proximity Caves 13005 | -4/Proximity Caves | Accompanied by 5 allies 13023 | -4/Proximity Caves | Learned Research emergency access door positions 13037 | -4/Proximity Caves | Learned 12 Research zone layouts 13065 | -4/Proximity Caves | Learned 8 Research zone layouts 13324 | -4/Proximity Caves | Discovered exit to Factory (range 15) 13351 | -4/Proximity Caves | Entered Factory 13351 | -4/Factory | Accompanied by 5 allies 13351 | -4/Factory | Evolved 2 slots: Propulsion x1, Weapon x1 13425 | -4/Factory | Garrison activated, responded to threat 13473 | -4/Factory | Lost 3 allies 13476 | -4/Factory | X0-1V1 vaporized surrounding terrain (radius 21) 13735 | -4/Factory | Identified exit to Research 13857 | -4/Factory | X0-1V1 caused items to flee you 13930 | -4/Factory | Spotted B-86 Titan 13985 | -4/Factory | Allies destroyed B-86 Titan 13987 | -4/Factory | Garrison activated, responded to threat 14013 | -4/Factory | Lost 7 parts (2p3n2w) 14096 | -4/Factory | Items stopped fleeing you 14376 | -4/Factory | Discovered new exit (range 7) 14385 | -4/Factory | Entered Upper Caves 14442 | -4/Upper Caves | Build established: Scavenger-Tank 14637 | -4/Upper Caves | Identified exit to Upper Caves 14637 | -4/Upper Caves | X0-1V1 revealed exit location to -4/Upper Caves 14882 | -4/Upper Caves | Entered another Upper Caves area 14900 | -4/Upper Caves | Attracted the attention of an 0b10 checkpoint 14935 | -4/Upper Caves | Learned 4 Research zone layouts 14995 | -4/Upper Caves | Build established: Tank 15078 | -4/Upper Caves | Learned 8 Research zone layouts 15123 | -4/Upper Caves | Ambushed by wild Derelicts 15476 | -4/Upper Caves | Core integrity restored by X0-1V1 (+137) 15485 | -4/Upper Caves | Discovered new exit (range 10) 15501 | -4/Upper Caves | Entered Warlord 15554 | -4/Warlord | System corruption cleaned by Quarantine Array 15846 | -4/Warlord | Opened Warlord's prototype stash 15853 | -4/Warlord | Found Prototype Reactor 15853 | -4/Warlord | Identified Vortex Chain Reactor 15864 | -4/Warlord | Discovered new exit (range 51) 15865 | -4/Warlord | Found Prototype Processor 15865 | -4/Warlord | Identified Exp. Armor Integrity Analyzer 15869 | -4/Warlord | Found Prototype Device 15869 | -4/Warlord | Identified Thermal Barrier 15966 | -4/Warlord | Met Warlord 15991 | -4/Warlord | Warlord's base attacked by MAIN.C 16085 | -4/Warlord | Build established: Commander-Tank 16114 | -4/Warlord | Corrupted Lgt. Quantum Reactor reconfigured into Item Mimic 16124 | -4/Warlord | Found Prototype Energy Gun 16124 | -4/Warlord | Identified Vortex Rifle 16130 | -4/Warlord | Found Prototype Launcher 16138 | -4/Warlord | Found Prototype Energy Gun 16138 | -4/Warlord | Identified Vortex Rail 16141 | -4/Warlord | Found Vortex Rail 16174 | -4/Warlord | Lost 3 allies 16341 | -4/Warlord | Warlord forces counterattacked 16369 | -4/Warlord | Spotted Executioner 16405 | -4/Warlord | Found Prototype Processor 16405 | -4/Warlord | Identified Exp. Core Analyzer 16410 | -4/Warlord | Lost 4 allies 16424 | -4/Warlord | Identified Vortex Catalyst Activator 16438 | -4/Warlord | Found Prototype Ballistic Cannon 16438 | -4/Warlord | Identified Hvy. Autocannon 16465 | -4/Warlord | Found Exp. Core Analyzer 16473 | -4/Warlord | Spotted Executioner 16478 | -4/Warlord | Allies destroyed Executioner 16507 | -4/Warlord | Spotted Executioner 16513 | -4/Warlord | Lost 7 allies 16521 | -4/Warlord | Destroyed Executioner 16552 | -4/Warlord | Lost 6 allies 16578 | -4/Warlord | Entered Proximity Caves 16706 | -3/Proximity Caves | Build established: Scavenger-Tank 16924 | -3/Proximity Caves | Core integrity restored by X0-1V1 (+202) 17018 | -3/Proximity Caves | X0-1V1 activates XOMVISION 17162 | -3/Proximity Caves | Build established: Derelict-Tank 17223 | -3/Proximity Caves | X0-1V1 caused items to flee you 17241 | -3/Proximity Caves | X0-1V1 sent hostile X-77 Beamer (x2) 17285 | -3/Proximity Caves | Acquired the password to a Derelict Tinkerer's latest research 17335 | -3/Proximity Caves | Discovered exit to Research (range 8) 17346 | -3/Proximity Caves | Entered Research 17346 | -3/Research | Evolved 2 slots: Power x1, Weapon x1 17347 | -3/Research | Identified exit to Research 17347 | -3/Research | Identified exit to Testing 17348 | -3/Research | Loaded intel: 68 trap records 17574 | -3/Research | Fabricated Assault Drone Bay (x1) 17640 | -3/Research | Fabricated Assault Drone Bay (x1) 17671 | -3/Research | Build established: Scavenger-Executioner 17691 | -3/Research | System corruption reached 10% 17711 | -3/Research | Fabricated Assault Drone Bay? 18125 | -3/Research | X0-1V1 activates XOMVISION 18253 | -3/Research | X0-1V1 foreshadows a heat wave 18267 | -3/Research | Lost 4 parts (1p3w) 18345 | -3/Research | Entered Testing 18360 | -3/Testing | Found Prototype Energy Gun 18360 | -3/Testing | Identified Hyp. EM Gauss Rifle 18412 | -3/Testing | Found Prototype Processor 18412 | -3/Testing | Identified Exp. Melee Analysis Suite 18427 | -3/Testing | X0-1V1 revealed exit location to -2/Research 18588 | -3/Testing | Build established: Tank 18636 | -3/Testing | Incoming investigation squad redirected 18659 | -3/Testing | Found Prototype Energy Cannon 18659 | -3/Testing | Identified Null Cannon 18888 | -3/Testing | Lost 7 parts (3n4w) 19016 | -3/Testing | System corruption reached 30% 19032 | -3/Testing | Weapon slot count temporarily expanded by X0-1V1 (+4) 19072 | -3/Testing | Scanned by Researcher 19180 | -3/Testing | Found Prototype Hackware 19266 | -3/Testing | X0-1V1 whisked you away to safety 19340 | -3/Testing | Build established: Scavenger-Executioner 19492 | -3/Testing | Lost 5 parts (1p1n3w) 19650 | -3/Testing | Found Prototype Ballistic Gun 19650 | -3/Testing | Identified Hyp. Multirail 19739 | -3/Testing | Weapon slot count reverted to normal (-4) 19779 | -3/Testing | X0-1V1 sent you to a vault 19791 | -3/Testing | Found Prototype Device 19791 | -3/Testing | Identified Exp. Actuator Array 19821 | -3/Testing | Found Prototype Device 19821 | -3/Testing | Identified Exp. Sensor Array 19830 | -3/Testing | Found Prototype Reactor 19830 | -3/Testing | Identified Zero-point Reactor 19833 | -3/Testing | Found Prototype Special Weapon 19833 | -3/Testing | Identified Gui. Remote Datajack 19838 | -3/Testing | Found Prototype Special Weapon 19838 | -3/Testing | Identified Exp. Remote Datajack 19856 | -3/Testing | Found Prototype Slashing Weapon 19856 | -3/Testing | Identified Hvy. Scimitar of Distortion 19946 | -3/Testing | Identified System Mapper 19979 | -3/Testing | Rewired PG-YDOA5VXH3U 20022 | -3/Testing | Found Prototype Energy Cannon 20022 | -3/Testing | Identified Disintegrator 20151 | -3/Testing | Spotted Striker 20151 | -3/Testing | Spotted Striker 20157 | -3/Testing | Spotted Alpha 7 20158 | -3/Testing | Destroyed Striker 20160 | -3/Testing | Destroyed Striker 20169 | -3/Testing | Allies destroyed Alpha 7 20306 | -3/Testing | Build established: Executioner 20517 | -3/Testing | Core integrity restored by X0-1V1 (+153) 20560 | -3/Testing | Entered Research 20560 | -2/Research | Accompanied by 1 ally 20560 | -2/Research | Warlord forces began assault on 0b10 20560 | -2/Research | Evolved 2 slots: Power x1, Propulsion x1 20584 | -2/Research | Borebot progress halted 20585 | -2/Research | Distinguished unit "Lair Dwellers" dispatched to help 20585 | -2/Research | Distinguished unit "Lucky Slug" dispatched to help 20622 | -2/Research | X0-1V1 vaporized surrounding terrain (radius 16) 20670 | -2/Research | Research machine network offline 20866 | -2/Research | Lost 4 allies 20948 | -2/Research | Found Exp. Core Analyzer 21004 | -2/Research | Build established: Generator-Executioner 21016 | -2/Research | Borebot progress halted 21052 | -2/Research | Discovered new exit (range 13) 21077 | -2/Research | Found Prototype Processor 21077 | -2/Research | Identified Exp. Melee Analysis Suite 21099 | -2/Research | Borebot progress halted 21274 | -2/Research | Borebot progress halted 21285 | -2/Research | Spotted Executioner 21291 | -2/Research | Destroyed Executioner 21296 | -2/Research | Spotted Executioner 21303 | -2/Research | Allies destroyed Executioner 21348 | -2/Research | Spotted B-90 Cyclops 21348 | -2/Research | X0-1V1 sent you into danger 21351 | -2/Research | Destroyed B-90 Cyclops 21450 | -2/Research | Spotted Striker 21648 | -2/Research | Spotted B-90 Cyclops 21661 | -2/Research | Destroyed B-90 Cyclops 21682 | -2/Research | X0-1V1 added 0b10 threat records associated with you (minor) 21813 | -2/Research | Discovered new exit (range 11) 21861 | -2/Research | Spotted Striker 21880 | -2/Research | Destroyed Striker 21960 | -2/Research | Found Exp. Core Analyzer 22038 | -2/Research | X0-1V1 sent you to a vault 22045 | -2/Research | Found Prototype Device 22045 | -2/Research | Identified Exp. Shield Generator 22055 | -2/Research | Found Prototype Device 22055 | -2/Research | Identified Exp. Thermal Shield 22063 | -2/Research | Given Cave Seal Controls access code 22084 | -2/Research | Discovered new exit (range 7) 22096 | -2/Research | Identified exit to Access 22163 | -2/Research | High security lockdown imminent 22240 | -2/Research | Found Exp. Core Analyzer 22243 | -2/Research | High security lockdown engaged 22244 | -2/Research | Found Exp. Core Analyzer 22277 | -2/Research | Identified exit to Quarantine 22277 | -2/Research | X0-1V1 revealed exit location to -2/Quarantine 22330 | -2/Research | Spotted Striker 22333 | -2/Research | Spotted Striker 22348 | -2/Research | Allies destroyed Striker 22372 | -2/Research | Lost 3 allies 22501 | -2/Research | Entered Quarantine 22501 | -2/Quarantine | Accompanied by 1 ally 22511 | -2/Quarantine | Found Alien Artifact 22587 | -2/Quarantine | Found Alien Artifact 22667 | -2/Quarantine | Found Alien Artifact 22670 | -2/Quarantine | Found Alien Artifact 22679 | -2/Quarantine | Found Alien Artifact 22681 | -2/Quarantine | Found Alien Artifact 22735 | -2/Quarantine | Spotted Alpha 7 22751 | -2/Quarantine | First assault squad dispatched 22770 | -2/Quarantine | Destroyed Alpha 7 22887 | -2/Quarantine | Destroyed 9 combat bots 22981 | -2/Quarantine | Found Alien Impact Weapon 22981 | -2/Quarantine | Identified Core Stripper 23058 | -2/Quarantine | Identified Dimensional Node Initializer (x3) 23058 | -2/Quarantine | Initialized slip node 23062 | -2/Quarantine | Initialized slip node 23067 | -2/Quarantine | Found Alien Launcher 23153 | -2/Quarantine | Met incapacitated Sigix Warrior 23153 | -2/Quarantine | Lockdown squad dispatched 23157 | -2/Quarantine | Acquired the access code to the Sigix quarantine chamber 23160 | -2/Quarantine | Unlocked Sigix quarantine chamber 23168 | -2/Quarantine | Found Sigix Containment Pod 23273 | -2/Quarantine | Build established: Tank 23311 | -2/Quarantine | X0-1V1 activates XOMVISION 23518 | -2/Quarantine | Found Alien Artifact 23543 | -2/Quarantine | Found Alien Artifact 23543 | -2/Quarantine | Identified Phase Redirector 23564 | -2/Quarantine | Cryocooling Duct disabled 23568 | -2/Quarantine | Cryocooling Duct disabled 23579 | -2/Quarantine | Ambient heat levels rising (+20) 23579 | -2/Quarantine | Non-combat units ordered to evacuate 23583 | -2/Quarantine | Ambient heat levels rising (+20) 23583 | -2/Quarantine | Combat units ordered to evacuate 23659 | -2/Quarantine | Build established: Generator-Bomber 23683 | -2/Quarantine | Quarantine Guard activated 23740 | -2/Quarantine | Spotted Fortress 23749 | -2/Quarantine | Destroyed Fortress 23762 | -2/Quarantine | Found Prototype Device 23762 | -2/Quarantine | Identified Exp. EM Shield 23788 | -2/Quarantine | Found Prototype Device 23788 | -2/Quarantine | Identified Exp. Force Field 23905 | -2/Quarantine | Discovered new exit (range 6) 23905 | -2/Quarantine | Discovered new exit (range 6) 23916 | -2/Quarantine | Entered Section 7 23954 | -2/Section 7 | X0-1V1 revealed exit location to -1/Access 23995 | -2/Section 7 | Identified Core Reset Matrix 23995 | -2/Section 7 | Watched by a mysterious "MATRIX" hacker 23996 | -2/Section 7 | X0-1V1 sent allied Striker (x2) 24073 | -2/Section 7 | X0-1V1 whisked you away to safety 24079 | -2/Section 7 | Spotted B-99 Colossus 24136 | -2/Section 7 | Found Alien Artifact 24136 | -2/Section 7 | Identified Integrity Redistributor 24136 | -2/Section 7 | Used Integrity Redistributor, redistributed integrity from core (-327) 24145 | -2/Section 7 | Found Integrity Redistributor 24147 | -2/Section 7 | Found Integrity Redistributor 24166 | -2/Section 7 | First assault squad dispatched 24204 | -2/Section 7 | Found Alien Artifact 24204 | -2/Section 7 | Identified LRC Armor 24204 | -2/Section 7 | Installed LRC Armor, increased core integrity (+250) 24402 | -2/Section 7 | Destroyed B-99 Colossus 24482 | -2/Section 7 | X0-1V1 sent allied Quarantine Guard (x1) 24747 | -2/Section 7 | Core integrity fell below 50% 24748 | -2/Section 7 | Spotted Striker 24750 | -2/Section 7 | X0-1V1 turns hostiles against one another 24755 | -2/Section 7 | Spotted Striker 24770 | -2/Section 7 | Spotted Striker 24771 | -2/Section 7 | Destroyed Striker 24772 | -2/Section 7 | Spotted Striker 24784 | -2/Section 7 | Destroyed Striker 24797 | -2/Section 7 | Destroyed Striker 24802 | -2/Section 7 | Destroyed Striker 24841 | -2/Section 7 | Found Alien Energy Cannon 24871 | -2/Section 7 | Found Alien Energy Gun 24871 | -2/Section 7 | Identified Sigix Sheargun 24884 | -2/Section 7 | Found Sigix Sheargun 25030 | -2/Section 7 | Found Alien Reactor 25030 | -2/Section 7 | Identified Matter Drive 25066 | -2/Section 7 | Spotted Executioner 25066 | -2/Section 7 | Spotted Executioner 25071 | -2/Section 7 | Destroyed Executioner 25075 | -2/Section 7 | Destroyed Executioner 25184 | -2/Section 7 | Incoming assault squad redirected 25185 | -2/Section 7 | Incoming assault squad redirected 25203 | -2/Section 7 | High security lockdown imminent 25220 | -2/Section 7 | Identified Subatomic Replicator 25220 | -2/Section 7 | Used Subatomic Replicator to replicate Hyp. Multirail 25283 | -2/Section 7 | High security lockdown engaged 25286 | -2/Section 7 | Initialized slip node 25388 | -2/Section 7 | X0-1V1 sent hostile P-80 Master (x3) 25390 | -2/Section 7 | System corruption reached 10% 25414 | -2/Section 7 | X0-1V1 sent allied Quarantine Guard (x1) 25465 | -2/Section 7 | X0-1V1 put everyone to sleep 25649 | -2/Section 7 | Identified Transdimensional Reconstructor (x3) 25649 | -2/Section 7 | Warped through subspace to slip node 25676 | -2/Section 7 | Entered Access 25676 | -1/Access | Evolved 2 slots: Propulsion x1, Weapon x1 25692 | -1/Access | X0-1V1 added 0b10 threat records associated with you (minor) 25722 | -1/Access | Build established: Executioner 25732 | -1/Access | Garrison activated, responded to threat 26007 | -1/Access | X0-1V1 destroyed Energy Cycler 26007 | -1/Access | Energy Cycler disabled 26042 | -1/Access | Destroyed 9 combat bots 26052 | -1/Access | High security lockdown imminent 26132 | -1/Access | High security lockdown engaged 26165 | -1/Access | Spotted Executioner 26170 | -1/Access | Destroyed Executioner 26190 | -1/Access | X0-1V1 sent you to a vault 26191 | -1/Access | Destroyed 13 combat bots 26195 | -1/Access | Found Prototype Device 26195 | -1/Access | Identified Adv. Particle Accelerator 26288 | -1/Access | Lost 9 parts (3p1n1u4w) 26299 | -1/Access | Destroyed 7 combat bots 26415 | -1/Access | Used Integrity Redistributor, redistributed integrity from core (-574) 26425 | -1/Access | Spotted Striker 26455 | -1/Access | Destroyed Striker 26508 | -1/Access | Destroyed 14 combat bots 26527 | -1/Access | Spotted Executioner 26527 | -1/Access | Spotted Striker 26535 | -1/Access | Core integrity fell below 50% 26543 | -1/Access | Destroyed Striker 26545 | -1/Access | Destroyed Executioner 26562 | -1/Access | X0-1V1 sent allied Mutant (x2) 26588 | -1/Access | Lost 6 parts (3p1n2w) 26595 | -1/Access | Destroyed 10 combat bots 26624 | -1/Access | Spotted Striker 26624 | -1/Access | Spotted Striker 26624 | -1/Access | Spotted Executioner 26624 | -1/Access | Spotted Striker 26625 | -1/Access | Spotted Executioner 26631 | -1/Access | Identified Sigix Terminator 26632 | -1/Access | Fired Sigix Terminator 26632 | -1/Access | Destroyed Executioner 26632 | -1/Access | Destroyed Executioner 26632 | -1/Access | Destroyed Executioner 26632 | -1/Access | Destroyed Striker 26632 | -1/Access | Destroyed Striker 26632 | -1/Access | Destroyed Striker 26656 | -1/Access | Spotted Investigator 26657 | -1/Access | Destroyed 16 combat bots 26660 | -1/Access | Destroyed Investigator 26665 | -1/Access | Spotted Executioner 26666 | -1/Access | Spotted Striker 26666 | -1/Access | Spotted Striker 26669 | -1/Access | Destroyed Executioner 26670 | -1/Access | System corruption reached 10% 26676 | -1/Access | Destroyed Striker 26685 | -1/Access | Destroyed Striker 26698 | -1/Access | Lost 8 parts (2p2n4w) 26712 | -1/Access | Destroyed 20 combat bots 26714 | -1/Access | Found Prototype Launcher 26714 | -1/Access | Identified Containment Facilitator 26813 | -1/Access | Spotted Striker 26813 | -1/Access | Spotted Striker 26821 | -1/Access | Destroyed Striker 26851 | -1/Access | Destroyed Striker 26874 | -1/Access | Destroyed 9 combat bots 26928 | -1/Access | Identified Sigix Shearcannon 26930 | -1/Access | Warped through subspace 26936 | -1/Access | Used Integrity Redistributor, redistributed integrity to core (+303) 26952 | -1/Access | Found Chronowheel 26952 | -1/Access | Activated Chronowheel 26956 | -1/Access | Warped through subspace 26979 | -1/Access | Identified exit to Surface 26979 | -1/Access | X0-1V1 revealed exit location to -0/Surface 26984 | -1/Access | Lost 11 parts (5n1u5w) 26984 | -1/Access | X0-1V1 sent you into danger 27008 | -1/Access | Core integrity fell below 20% 27046 | -1/Access | Destroyed by G-73 Enforcer with Phase Gun Last Messages --------------- 27018_ Energy generation returns to normal. 27029_ HV Slug penetrates G-73 Enforcer. 27029_ G-73 Enforcer suffers critical hit (Destroy). 27029_ G-73 Enforcer destroyed. 27029_ HV Slug penetrates Wall. 27029_ HV Slug penetrates Fabricator. 27031_ HV Slug penetrates G-73 Enforcer. 27031_ G-73 Enforcer suffers critical hit (Destroy). 27031_ Destroyed Lgt. Quantum Reactor. 27031_ HV Slug penetrates Wall. 27032_ W-44 Eye sends out distress signal. 27033_ HV Slug penetrates Wall. 27033_ HV Slug penetrates G-73 Enforcer. 27033_ G-73 Enforcer suffers critical hit (Destroy). 27033_ G-73 Enforcer destroyed. X0-1V1's Piety Tracker suddenly appears amidst shimmering waves of color. 27036_ Acquired 38 matter. 27037_ Acquired Myomer Leg. 27043_ Critical hit (Burn: +37). 27046_ X0-1V1 chortles! Map ----- +----------------------------------------------------+ | ?????????????????????????????????????????????????? | | ?????????????????????????????????????????????????? | | ??????????????????????????????????????????????#""" | | ??????????????????????????????????????????????# | | ??????????????????????????????????????????????# | | ???????????????????????????????????????###????# | | ????????????????????#################### ###### | | ????????????????????# " " | | ????????????????????# # # | | ????????????????????# # "" # | | ????????????????????# # """ # | | ????????????????????# "" + "T # | | ????????????????????#""" ! # """ # | | ????????????????????#"F %*# "" ! # | | ????????????????????#""" [[ # # | | ????????????????????#""" ! # / | | ????????????????????#""" # # | | ????????????????????# # # | | ????????????????????# %!# # | | ?????????????##################+############### | | ?????????????# [=! | | ?????????????# | | ?????????????# g | | ?????????????# | | ?????????????# | | ?????????????# @ | | ?????????????# g w | | ?????????????# ###+########## ######## | | ?????????????# ??????????????# #??????? | | ?????????????# ???????????????# #??????? | | ?????????????# ?????????????????# #??????? | | ?????????????# ??????????????????# #??????? | | ?????????????# ???????????????????# #??????? | | ??????????????????????????????????# #??????? | | ??????????????????????????????????# #??????? | | ??????????????????????????????????# #??????? | | ??????????????????????????????????# ######?? | | ??????????????????????????????????# # #?? | | ??????????????????????????????????# # #?? | | ????????????????? ???????????????# # #?? | | ????????????????? ############## =[!# #?? | | ????????????????? |!%+% * #?? | | ???????????????? !%%%# #?? | | ???????????????? %%!# #?? | | ???????????????? !![# #?? | | ??????????????? # #?? | | ??????????????? ######?? | | ??????????????? #??????? | | ???????????????? #################+#######???? | | ????????????????????????????????# !% #???? | +----------------------------------------------------+ Best States ------------- Heat Dissipation 151 Coolant Potential 120 Energy Generation 103 Energy Capacity 3315 Matter Stores 1000 Matter Capacity 1000 Sight Range 25 Terrain Scan Range 30 Terrain Scan Density 10 Jamming Range 14 Cloak Strength 4 Power Amplification 40 Armor Coverage 1200 Resistance: KI 10 Resistance: TH 50 Resistance: EM 75 Propulsion Shielding 33 Weapon Cycling 25 Phase Shifting 15 Evasion (%) 55 Targeting Accuracy 20 Melee Accuracy 12 Launcher Accuracy 60 Core Analysis 8 Armor Integrity Analysis 50 Recoil Reduction 11 Matter Filtering 50 Salvage Targeting 3 Offensive Hacking 20 Defensive Hacking 16 Authchip Count 8 Item Schematics ----------------- Huge Storage Unit | -10/Materials | Hacked Combat Drone Bay | -7/Data Miner | Free Lgt. Regenerative Plating | -7/Data Miner | Free Cld. Cesium-ion Thruster | -7/Data Miner | Free Exp. Targeting Computer | -7/Data Miner | Free Antimatter Cannon | -7/Data Miner | Free Antigrav System | -7/Data Miner | Free Imp. Kinecellerator | -7/Data Miner | Free Enh. Gauss Cannon | -7/Data Miner | Free Hvy. Phase Cannon | -7/Data Miner | Free Imp. Linear Gravjet | -7/Data Miner | Free Assault Drone Bay | -5/Zhirov | Free Exp. Heat Sink | -5/Zhirov | Free Exp. Optical Array | -5/Zhirov | Free Imp. Arc Thrower | -5/Zhirov | Free Prc. Matter Filter | -2/Quarantine | Archive Robot Schematics ------------------ W-25 Informer | -7/Data Miner | Free M-14 Sweeper | -7/Data Miner | Free X-57 Shotgunner | -7/Data Miner | Free A-15 Conveyor | -7/Data Miner | Free X-67 Chaingunner | -7/Data Miner | Free X-62 Marksman | -7/Data Miner | Free Fabricated ------------ Lgt. Regenerative Plating | x1 | -5/Factory | Authchip Combat Drone Bay | x1 | -5/Factory | Authchip Combat Drone Bay | x1 | -5/Factory | Authchip Combat Drone Bay | x1 | -5/Factory | Authchip Combat Drone Bay | x1 | -5/Factory | Authchip Assault Drone Bay | x1 | -3/Research | Authchip Assault Drone Bay | x1 | -3/Research | Authchip Assault Drone Bay | x1 | -3/Research | Authchip Repaired ---------- Hcp. Storage Unit | 50% | -5/Factory Studied --------- Hvy. Assault Cannon | -9/Materials | Hacked Imp. Treads | -9/Materials | Hacked Enh. Nova Cannon | -2/Section 7 | Hacked Enh. Hardcell Cannon | -1/Access | Hacked Alien Tech Used ----------------- Integrated Dissipator Core Stripper Dimensional Node Initializer Phase Redirector Integrity Redistributor LRC Armor Sigix Sheargun Matter Drive Subatomic Replicator Transdimensional Reconstructor Sigix Terminator Sigix Shearcannon Achievements -------------- None Challenges ------------ None Game ------ Seed AdvancedControlObfuscator Manual? 0 Play Time 06:12:15 Cumulative 1767.9 hours Start 2026.09.02 @ 08:49:53 End 2026.09.04 @ 16:16:20 Sessions 14 Manual Loads 0 Difficulty Rogue Special Mode None Game No. 535 Rogue 527 Adventurer 4 Explorer 4 Win Type - Total 70 Types 31/9/5/4/2/5/7/2/3/2 Lore% 97 Gallery% 96 Achievement% 92 Wizard Run 0 Options --------- Layout 0 ASCII 0 Keyboard 0 Movement Numpad Keybinds 0 Fullscreen 2 Font 18/SmallcapsGlow Map View 76x50 Zoom Use 9% Tactical HUD 1 Map Filters NONE Filters NONE Steam 1 RUN: 2f3df781-5ed1-4a71-9fbd-41db7bc04913